Workbook

Sheet Cover
A1: cover
C2: Handbook of Program Feedback Loops
C3: Program: | D3: =Cover.ProgramName -> DEMO | G3: v.0.9.Demo | J3: Select language
D25: Program name | F25: DEMO
D26: Program No. | F26: 123456
D28: Program Sponsor | F28: <Customer Sponsor>
D30: Program Manager | F30: <Program Manager>
D32: Customer | F32: <Customer>
D34: Approval Date | F34: 2012-10-21
D36: Complexity | F36: <Complexity>
D37: Category | F37: <Category>
D38: Size | F38: <Size>
D40: Status | F40: <Status>
D41: Date of status | F41: <Date of Status>
D42: Approval date of status | F42: <Approval date of status>
C45: ©2012 by Gottfried Rudorfer, demonstration-version of the Handbook of Program Feedback Loops.

Sheet Table of Contens
A1: toc
C2: Table of contents
C3: Program: | D3: =Cover.ProgramName -> DEMO
C4: Method | D4: Sheet | E4: Requ. for program? | F4: Seclection | G4: Print
B5: 1 | C5: Cover | D5: Cover | E5: R | F5: x | G5: x
B6: 2 | C6: Table of Contens | D6: Table of Contens | E6: R | F6: x | G6: x
B7: 3 | C7: Top-down Prg. Status | D7: Top-down Prg. Status | E7: R | F7: x | G7: x
B8: 4 | C8: Bottom-up Prg. Status | D8: Bottom-up Prg. Status | E8: R | F8: x | G8: x
B9: 5 | C9: Timesheet raw data | D9: Timesheet raw data | E9: R | F9: x | G9: -
B10: 6 | C10: Estimate to complete | D10: Estimate to complete | E10: R | F10: x | G10: x
B11: 7 | C11: Rolling plan | D11: Rolling plan | E11: R | F11: x | G11: x
B12: 8 | C12: Traffic Light report | D12: Traffic Light report | E12: R | F12: x | G12: x
B13: 9 | C13: Scoreboard Risiken und Changen | E13: R | F13: x | G13: x
B14: 10 | C14: Erläuterung Risiken + Chancen | E14: R | F14: x | G14: x
B15: 11 | C15: Detailbewertung Risiken | E15: R | F15: x | G15: x
B16: 12 | C16: Detailbewertung Chancen | E16: R | F16: x | G16: x
E19: R: Required O: Optional -: not applicable
C23: Other references
B24: 1 | C24: Homepage Gottfried Rudorfer | D24: http://rudorfer.homedns.org
B25: 2 | C25: Homepage CA Technologies | D25: http://www.ca.com
B26: 3

Sheet Top-down Prg. Status
A1: topdownpgs
B2: Top-down Program Status
C3: Program: | D3: =Cover.ProgramName -> DEMO
B4: CUSTOMER "DEMO" IMPLEMENTATION PROGRAM
D5: PROGRAM STATUS DATE: | E5: =MAX('Timesheet raw data'!C:C) -> 2011-12-16 | H5: Update Top down status weekly!
D7: Draft Planning as of Sept 2011 | V7: Total
B8: Software | C8: Project | E8: 2011-09-01 | F8: 2011-10-01 | G8: 2011-11-01 | H8: 2011-12-01 | I8: 2012-01-01 | J8: 2012-02-01 | K8: 2012-03-01 | L8: 2012-04-01 | M8: 2012-05-01 | N8: 2012-06-01 | O8: 2012-07-01 | P8: 2012-08-01 | Q8: 2012-09-01 | R8: 2012-10-01 | S8: 2012-11-01 | T8: 2012-12-01 | V8: Days
B9: CA Service Desk Manager based | C9: Tenant1 | D9: Incident Management | E9: 10 | F9: 20 | G9: 20 | H9: 20 | I9: 20 | J9: 20 | K9: 10 | L9: 0 | M9: 0 | N9: 0 | O9: 0 | P9: 0 | Q9: 0 | R9: 0 | S9: 0 | T9: 0 | V9: =SUM(E9:U9) -> 120
C10: Tenant2 | D10: Incident Management | E10: 0 | F10: 5 | G10: 15 | H10: 15 | I10: 15 | J10: 15 | K10: 15 | L10: 15 | M10: 5 | N10: 0 | O10: 0 | P10: 0 | Q10: 0 | R10: 0 | S10: 0 | T10: 0 | V10: =SUM(E10:U10) -> 100
C11: SaaS Env | D11: Interfaces | E11: 0 | F11: 0 | G11: 10.17758677 | H11: 20 | I11: 20 | J11: 10 | K11: 5 | L11: 5 | M11: 5 | N11: 5 | O11: 5 | P11: 5 | Q11: 5 | R11: 5 | T11: 0 | V11: 100.1775868
C12: SaaS Env | D12: Reporting | E12: 0 | F12: 0 | G12: 0 | H12: 10 | I12: 20 | J12: 20 | K12: 20 | L12: 20 | M12: 10 | N12: 0 | O12: 0 | P12: 0 | Q12: 0 | R12: 0 | S12: 0 | T12: 0 | V12: 100
C13: Tenant1 | D13: Problem Management | E13: 0 | F13: 0 | G13: 0 | H13: 5.291222534 | I13: 20 | J13: 20 | K13: 20 | L13: 10 | M13: 0 | N13: 0 | O13: 0 | P13: 0 | Q13: 0 | R13: 0 | S13: 0 | T13: 0 | V13: 75.29122253
C14: Tenant2 | D14: Problem Management | E14: 0 | F14: 0 | G14: 0 | H14: 0 | I14: 5 | J14: 20 | K14: 20 | L14: 20 | M14: 20 | N14: 15 | O14: 10 | P14: 0 | Q14: 0 | R14: 0 | S14: 0 | T14: 0 | V14: 110
C15: Tenant2 | D15: Change Management | E15: 0 | F15: 0 | G15: 0 | H15: 0 | I15: 11.03803719 | J15: 19.39435945 | K15: 30.20837887 | L15: 29.33297865 | M15: 33.4234576 | N15: 32.49482617 | O15: 0 | P15: 0 | Q15: 0 | R15: 0 | S15: 0 | T15: 0 | V15: 155.8920379
C16: Tenant3 | D16: Incident Management | E16: 0 | F16: 0 | G16: 0 | H16: 0 | I16: 9.914044293 | J16: 12 | K16: 10 | L16: 11.64091889 | M16: 10 | N16: 20 | O16: 20 | P16: 20 | Q16: 15 | R16: 10 | S16: 0 | T16: 0 | V16: 138.5549632
C17: Tenant3 | D17: Change Management | E17: 0 | F17: 0 | G17: 0 | H17: 0 | I17: 0 | J17: 0 | K17: 0 | L17: 0 | M17: 0 | N17: 0 | O17: 15 | P17: 20 | Q17: 20 | R17: 20 | S17: 20 | T17: 10 | V17: 105
C18: Tenant3 | D18: CMDB | E18: 0 | F18: 0 | G18: 0 | H18: 0 | I18: 15 | J18: 20 | K18: 25 | L18: 25 | M18: 20 | N18: 20 | O18: 20 | P18: 10 | Q18: 0 | R18: 0 | S18: 0 | T18: 0 | V18: 155
C19: Tenant 4 | D19: Incident Management | E19: 0 | F19: 0 | G19: 0 | H19: 0 | I19: 0 | J19: 0 | K19: 10 | L19: 20 | M19: 20 | N19: 20 | O19: 20 | P19: 20 | Q19: 10 | R19: 0 | S19: 0 | T19: 0 | V19: 120
C20: Tenant 4 | D20: Problem Management | E20: 0 | F20: 0 | G20: 0 | H20: 0 | I20: 0 | J20: 0 | K20: 0 | L20: 5 | M20: 15 | N20: 15 | O20: 15 | P20: 15 | Q20: 15 | R20: 15 | S20: 5 | T20: 0 | V20: 100
C21: Tenant 5 | D21: Incident Management | E21: 0 | F21: 0 | G21: 0 | H21: 0 | I21: 0 | J21: 0 | K21: 0 | L21: 0 | M21: 10 | N21: 20 | O21: 20 | P21: 20 | Q21: 20 | R21: 20 | S21: 5 | T21: 5 | V21: 120
D22: Planned Total days | E22: =SUM(E9:E21) -> 10 | F22: =SUM(F9:F21) -> 25 | G22: =SUM(G9:G21) -> 45.17758677 | H22: 70.29122253 | I22: 135.9520815 | J22: 156.3943594 | K22: 165.2083789 | L22: 160.9738975 | M22: 148.4234576 | N22: 147.4948262 | O22: 125 | P22: 110 | Q22: 85 | R22: 70 | S22: 30 | T22: 15 | U22: =SUM(U9:U18) -> 0 | V22: =SUM(V9:V21) -> 1499.91581
D23: Planned Accumulated days | E23: =E22 -> 10 | F23: =E23+F22 -> 35 | G23: 80.17758677 | H23: 150.4688093 | I23: 286.4208908 | J23: 442.8152502 | K23: 608.0236291 | L23: 768.9975266 | M23: 917.4209842 | N23: 1064.91581 | O23: =N23+O22 -> 1189.91581 | P23: =O23+P22 -> 1299.91581 | Q23: =P23+Q22 -> 1384.91581 | R23: =Q23+R22 -> 1454.91581 | S23: =R23+S22 -> 1484.91581 | T23: =S23+T22 -> 1499.91581 | U23: =SUM(U10:U18) -> 0
D24: Planned avg. heads | E24: =E22/20 -> 0.5 | F24: 1.25 | G24: 2.258879339 | H24: 3.514561127 | I24: 6.797604074 | J24: 7.819717972 | K24: 8.260418944 | L24: 8.048694877 | M24: 7.42117288 | N24: 7.374741309 | O24: =O22/20 -> 6.25 | P24: 5.5 | Q24: 4.25 | R24: =R22/20 -> 3.5 | S24: 1.5 | T24: 0.75
D26: ="Actuals until " & YEAR(E5) & "-" & MONTH(E5) & " and Estimates stated in SOWs" -> Actuals until 2011-12 and Estimates stated in SOWs | V26: Total
B27: Software | C27: Project | E27: 2011-09-01 | F27: 2011-10-01 | G27: 2011-11-01 | H27: 2011-12-01 | I27: 2012-01-01 | J27: 2012-02-01 | K27: 2012-03-01 | L27: 2012-04-01 | M27: 2012-05-01 | N27: 2012-06-01 | O27: 2012-07-01 | P27: 2012-08-01 | Q27: 2012-09-01 | R27: 2012-10-01 | S27: 2012-11-01 | T27: 2012-12-01 | V27: Days
D28: Actual avg. Heads | E28: =E30/20 -> 0.2875 | F28: 2.2875 | G28: 3.0078125 | H28: 1.465625 | I28: 6.297604074 | J28: 7.319717972 | K28: 7.760418944 | L28: 8.048694877 | M28: 7.42117288 | N28: 7.374741309 | O28: =O30/20 -> 6.25 | P28: 5.5 | Q28: 4.25 | R28: =R30/20 -> 3.5 | S28: 1.5 | T28: 0.75
D29: Actual Accumulated days | E29: =E30 -> 5.75 | F29: =E29+F30 -> 51.5 | G29: 111.65625 | H29: 140.96875 | I29: 266.9208315 | J29: 413.3151909 | K29: 568.5235698 | L29: 729.4974673 | M29: 877.9209249 | N29: 1025.415751 | O29: =N29+O30 -> 1150.415751 | P29: =O29+P30 -> 1260.415751 | Q29: =P29+Q30 -> 1345.415751 | R29: =Q29+R30 -> 1415.415751 | S29: =R29+S30 -> 1445.415751 | T29: =S29+T30 -> 1460.415751 | U29: =SUM(U14:U25) -> 0
D30: Actual Total days | E30: =SUM(E31:E43) -> 5.75 | F30: =SUM(F31:F43) -> 45.75 | G30: =SUM(G31:G43) -> 60.15625 | H30: =SUM(H31:H43) -> 29.3125 | I30: =SUM(I31:I43) -> 125.9520815 | J30: 146.3943594 | K30: 155.2083789 | L30: 160.9738975 | M30: 148.4234576 | N30: 147.4948262 | O30: 125 | P30: 110 | Q30: 85 | R30: 70 | S30: 30 | T30: 15 | U30: =SUM(U15:U25) -> 0 | V30: =SUM(E30:T30) -> 1460.415751
B31: CA Service Desk Manager based | C31: Tenant1 | D31: Incident Management | E31: =SUMIF('Timesheet raw data'!$K:$K,$C31& " " & $D31&"-"&TEXT(YEAR(E$27),"0000")&"-"&TEXT(MONTH(E$27),"00"),'Timesheet raw data'!$E:$E)/8 -> 2.75 | F31: =SUMIF('Timesheet raw data'!$K:$K,$C31& " " & $D31&"-"&TEXT(YEAR(F$27),"0000")&"-"&TEXT(MONTH(F$27),"00"),'Timesheet raw data'!$E:$E)/8 -> 45.75 | G31: =SUMIF('Timesheet raw data'!$K:$K,$C31& " " & $D31&"-"&TEXT(YEAR(G$27),"0000")&"-"&TEXT(MONTH(G$27),"00"),'Timesheet raw data'!$E:$E)/8 -> 37.90625 | H31: =SUMIF('Timesheet raw data'!$K:$K,$C31& " " & $D31&"-"&TEXT(YEAR(H$27),"0000")&"-"&TEXT(MONTH(H$27),"00"),'Timesheet raw data'!$E:$E)/8 -> 20.0625 | I31: 10 | J31: 10 | K31: 0 | L31: =L9 -> 0 | M31: 0 | N31: 0 | O31: 0 | P31: 0 | Q31: 0 | R31: 0 | S31: 0 | T31: 0 | V31: =SUM(E31:U31) -> 126.46875
C32: Tenant2 | D32: Incident Management | E32: =SUMIF('Timesheet raw data'!$K:$K,$C32& " " & $D32&"-"&TEXT(YEAR(E$27),"0000")&"-"&TEXT(MONTH(E$27),"00"),'Timesheet raw data'!$E:$E)/8 -> 3 | F32: =SUMIF('Timesheet raw data'!$K:$K,$C32& " " & $D32&"-"&TEXT(YEAR(F$27),"0000")&"-"&TEXT(MONTH(F$27),"00"),'Timesheet raw data'!$E:$E)/8 -> 0 | G32: =SUMIF('Timesheet raw data'!$K:$K,$C32& " " & $D32&"-"&TEXT(YEAR(G$27),"0000")&"-"&TEXT(MONTH(G$27),"00"),'Timesheet raw data'!$E:$E)/8 -> 22.25 | H32: =SUMIF('Timesheet raw data'!$K:$K,$C32& " " & $D32&"-"&TEXT(YEAR(H$27),"0000")&"-"&TEXT(MONTH(H$27),"00"),'Timesheet raw data'!$E:$E)/8 -> 9.25 | I32: =I10 -> 15 | J32: 15 | K32: 15 | L32: 15 | M32: 5 | N32: 0 | O32: 0 | P32: 0 | Q32: 0 | R32: 0 | S32: 0 | T32: 0 | V32: =SUM(E32:U32) -> 99.5
C33: SaaS Env | D33: Interfaces | E33: =SUMIF('Timesheet raw data'!$K:$K,$C33& " " & $D33&"-"&TEXT(YEAR(E$27),"0000")&"-"&TEXT(MONTH(E$27),"00"),'Timesheet raw data'!$E:$E)/8 -> 0 | F33: =SUMIF('Timesheet raw data'!$K:$K,$C33& " " & $D33&"-"&TEXT(YEAR(F$27),"0000")&"-"&TEXT(MONTH(F$27),"00"),'Timesheet raw data'!$E:$E)/8 -> 0 | G33: =SUMIF('Timesheet raw data'!$K:$K,$C33& " " & $D33&"-"&TEXT(YEAR(G$27),"0000")&"-"&TEXT(MONTH(G$27),"00"),'Timesheet raw data'!$E:$E)/8 -> 0 | H33: =SUMIF('Timesheet raw data'!$K:$K,$C33& " " & $D33&"-"&TEXT(YEAR(H$27),"0000")&"-"&TEXT(MONTH(H$27),"00"),'Timesheet raw data'!$E:$E)/8 -> 0 | I33: =I11 -> 20 | J33: 10 | K33: 5 | L33: 5 | M33: 5 | N33: 5 | O33: 5 | P33: 5 | Q33: 5 | R33: 5 | S33: 0 | T33: 0 | V33: 70
C34: SaaS Env | D34: Reporting | E34: =SUMIF('Timesheet raw data'!$K:$K,$C34& " " & $D34&"-"&TEXT(YEAR(E$27),"0000")&"-"&TEXT(MONTH(E$27),"00"),'Timesheet raw data'!$E:$E)/8 -> 0 | F34: =SUMIF('Timesheet raw data'!$K:$K,$C34& " " & $D34&"-"&TEXT(YEAR(F$27),"0000")&"-"&TEXT(MONTH(F$27),"00"),'Timesheet raw data'!$E:$E)/8 -> 0 | G34: =SUMIF('Timesheet raw data'!$K:$K,$C34& " " & $D34&"-"&TEXT(YEAR(G$27),"0000")&"-"&TEXT(MONTH(G$27),"00"),'Timesheet raw data'!$E:$E)/8 -> 0 | H34: =SUMIF('Timesheet raw data'!$K:$K,$C34& " " & $D34&"-"&TEXT(YEAR(H$27),"0000")&"-"&TEXT(MONTH(H$27),"00"),'Timesheet raw data'!$E:$E)/8 -> 0 | I34: =I12 -> 20 | J34: 20 | K34: 20 | L34: 20 | M34: 10 | N34: 0 | O34: 0 | P34: 0 | Q34: 0 | R34: 0 | S34: 0 | T34: 0 | V34: 90
C35: Tenant1 | D35: Problem Management | E35: =SUMIF('Timesheet raw data'!$K:$K,$C35& " " & $D35&"-"&TEXT(YEAR(E$27),"0000")&"-"&TEXT(MONTH(E$27),"00"),'Timesheet raw data'!$E:$E)/8 -> 0 | F35: =SUMIF('Timesheet raw data'!$K:$K,$C35& " " & $D35&"-"&TEXT(YEAR(F$27),"0000")&"-"&TEXT(MONTH(F$27),"00"),'Timesheet raw data'!$E:$E)/8 -> 0 | G35: =SUMIF('Timesheet raw data'!$K:$K,$C35& " " & $D35&"-"&TEXT(YEAR(G$27),"0000")&"-"&TEXT(MONTH(G$27),"00"),'Timesheet raw data'!$E:$E)/8 -> 0 | H35: =SUMIF('Timesheet raw data'!$K:$K,$C35& " " & $D35&"-"&TEXT(YEAR(H$27),"0000")&"-"&TEXT(MONTH(H$27),"00"),'Timesheet raw data'!$E:$E)/8 -> 0 | I35: =I13 -> 20 | J35: 20 | K35: 20 | L35: 10 | M35: 0 | N35: 0 | O35: 0 | P35: 0 | Q35: 0 | R35: 0 | S35: 0 | T35: 0 | V35: 70
C36: Tenant2 | D36: Problem Management | E36: =SUMIF('Timesheet raw data'!$K:$K,$C36& " " & $D36&"-"&TEXT(YEAR(E$27),"0000")&"-"&TEXT(MONTH(E$27),"00"),'Timesheet raw data'!$E:$E)/8 -> 0 | F36: =SUMIF('Timesheet raw data'!$K:$K,$C36& " " & $D36&"-"&TEXT(YEAR(F$27),"0000")&"-"&TEXT(MONTH(F$27),"00"),'Timesheet raw data'!$E:$E)/8 -> 0 | G36: =SUMIF('Timesheet raw data'!$K:$K,$C36& " " & $D36&"-"&TEXT(YEAR(G$27),"0000")&"-"&TEXT(MONTH(G$27),"00"),'Timesheet raw data'!$E:$E)/8 -> 0 | H36: =SUMIF('Timesheet raw data'!$K:$K,$C36& " " & $D36&"-"&TEXT(YEAR(H$27),"0000")&"-"&TEXT(MONTH(H$27),"00"),'Timesheet raw data'!$E:$E)/8 -> 0 | I36: =I14 -> 5 | J36: 20 | K36: 20 | L36: 20 | M36: 20 | N36: 15 | O36: 10 | P36: 0 | Q36: 0 | R36: 0 | S36: 0 | T36: 0 | V36: 110
C37: Tenant2 | D37: Change Management | E37: =SUMIF('Timesheet raw data'!$K:$K,$C37& " " & $D37&"-"&TEXT(YEAR(E$27),"0000")&"-"&TEXT(MONTH(E$27),"00"),'Timesheet raw data'!$E:$E)/8 -> 0 | F37: =SUMIF('Timesheet raw data'!$K:$K,$C37& " " & $D37&"-"&TEXT(YEAR(F$27),"0000")&"-"&TEXT(MONTH(F$27),"00"),'Timesheet raw data'!$E:$E)/8 -> 0 | G37: =SUMIF('Timesheet raw data'!$K:$K,$C37& " " & $D37&"-"&TEXT(YEAR(G$27),"0000")&"-"&TEXT(MONTH(G$27),"00"),'Timesheet raw data'!$E:$E)/8 -> 0 | H37: =SUMIF('Timesheet raw data'!$K:$K,$C37& " " & $D37&"-"&TEXT(YEAR(H$27),"0000")&"-"&TEXT(MONTH(H$27),"00"),'Timesheet raw data'!$E:$E)/8 -> 0 | I37: =I15 -> 11.03803719 | J37: 19.39435945 | K37: 30.20837887 | L37: 29.33297865 | M37: 33.4234576 | N37: 32.49482617 | O37: 0 | P37: 0 | Q37: 0 | R37: 0 | S37: 0 | T37: 0 | V37: 155.8920379
C38: Tenant3 | D38: Incident Management | E38: =SUMIF('Timesheet raw data'!$K:$K,$C38& " " & $D38&"-"&TEXT(YEAR(E$27),"0000")&"-"&TEXT(MONTH(E$27),"00"),'Timesheet raw data'!$E:$E)/8 -> 0 | F38: =SUMIF('Timesheet raw data'!$K:$K,$C38& " " & $D38&"-"&TEXT(YEAR(F$27),"0000")&"-"&TEXT(MONTH(F$27),"00"),'Timesheet raw data'!$E:$E)/8 -> 0 | G38: =SUMIF('Timesheet raw data'!$K:$K,$C38& " " & $D38&"-"&TEXT(YEAR(G$27),"0000")&"-"&TEXT(MONTH(G$27),"00"),'Timesheet raw data'!$E:$E)/8 -> 0 | H38: =SUMIF('Timesheet raw data'!$K:$K,$C38& " " & $D38&"-"&TEXT(YEAR(H$27),"0000")&"-"&TEXT(MONTH(H$27),"00"),'Timesheet raw data'!$E:$E)/8 -> 0 | I38: =I16 -> 9.914044293 | J38: 12 | K38: 10 | L38: 11.64091889 | M38: 10 | N38: 20 | O38: 20 | P38: 20 | Q38: 15 | R38: 10 | S38: 0 | T38: 0 | V38: 138.5549632
C39: Tenant3 | D39: Change Management | E39: =SUMIF('Timesheet raw data'!$K:$K,$C39& " " & $D39&"-"&TEXT(YEAR(E$27),"0000")&"-"&TEXT(MONTH(E$27),"00"),'Timesheet raw data'!$E:$E)/8 -> 0 | F39: =SUMIF('Timesheet raw data'!$K:$K,$C39& " " & $D39&"-"&TEXT(YEAR(F$27),"0000")&"-"&TEXT(MONTH(F$27),"00"),'Timesheet raw data'!$E:$E)/8 -> 0 | G39: =SUMIF('Timesheet raw data'!$K:$K,$C39& " " & $D39&"-"&TEXT(YEAR(G$27),"0000")&"-"&TEXT(MONTH(G$27),"00"),'Timesheet raw data'!$E:$E)/8 -> 0 | H39: =SUMIF('Timesheet raw data'!$K:$K,$C39& " " & $D39&"-"&TEXT(YEAR(H$27),"0000")&"-"&TEXT(MONTH(H$27),"00"),'Timesheet raw data'!$E:$E)/8 -> 0 | I39: =I17 -> 0 | J39: 0 | K39: 0 | L39: 0 | M39: 0 | N39: 0 | O39: 15 | P39: 20 | Q39: 20 | R39: 20 | S39: 20 | T39: 10 | V39: 105
C40: Tenant3 | D40: CMDB | E40: =SUMIF('Timesheet raw data'!$K:$K,$C40& " " & $D40&"-"&TEXT(YEAR(E$27),"0000")&"-"&TEXT(MONTH(E$27),"00"),'Timesheet raw data'!$E:$E)/8 -> 0 | F40: =SUMIF('Timesheet raw data'!$K:$K,$C40& " " & $D40&"-"&TEXT(YEAR(F$27),"0000")&"-"&TEXT(MONTH(F$27),"00"),'Timesheet raw data'!$E:$E)/8 -> 0 | G40: =SUMIF('Timesheet raw data'!$K:$K,$C40& " " & $D40&"-"&TEXT(YEAR(G$27),"0000")&"-"&TEXT(MONTH(G$27),"00"),'Timesheet raw data'!$E:$E)/8 -> 0 | H40: =SUMIF('Timesheet raw data'!$K:$K,$C40& " " & $D40&"-"&TEXT(YEAR(H$27),"0000")&"-"&TEXT(MONTH(H$27),"00"),'Timesheet raw data'!$E:$E)/8 -> 0 | I40: =I18 -> 15 | J40: 20 | K40: 25 | L40: 25 | M40: 20 | N40: 20 | O40: 20 | P40: 10 | Q40: 0 | R40: 0 | S40: 0 | T40: 0 | V40: 155
C41: Tenant 4 | D41: Incident Management | E41: =SUMIF('Timesheet raw data'!$K:$K,$C41& " " & $D41&"-"&TEXT(YEAR(E$27),"0000")&"-"&TEXT(MONTH(E$27),"00"),'Timesheet raw data'!$E:$E)/8 -> 0 | F41: =SUMIF('Timesheet raw data'!$K:$K,$C41& " " & $D41&"-"&TEXT(YEAR(F$27),"0000")&"-"&TEXT(MONTH(F$27),"00"),'Timesheet raw data'!$E:$E)/8 -> 0 | G41: =SUMIF('Timesheet raw data'!$K:$K,$C41& " " & $D41&"-"&TEXT(YEAR(G$27),"0000")&"-"&TEXT(MONTH(G$27),"00"),'Timesheet raw data'!$E:$E)/8 -> 0 | H41: =SUMIF('Timesheet raw data'!$K:$K,$C41& " " & $D41&"-"&TEXT(YEAR(H$27),"0000")&"-"&TEXT(MONTH(H$27),"00"),'Timesheet raw data'!$E:$E)/8 -> 0 | I41: =I19 -> 0 | J41: 0 | K41: 10 | L41: 20 | M41: 20 | N41: 20 | O41: 20 | P41: 20 | Q41: 10 | R41: 0 | S41: 0 | T41: 0 | V41: 120
C42: Tenant 4 | D42: Incident Management | E42: =SUMIF('Timesheet raw data'!$K:$K,$C42& " " & $D42&"-"&TEXT(YEAR(E$27),"0000")&"-"&TEXT(MONTH(E$27),"00"),'Timesheet raw data'!$E:$E)/8 -> 0 | F42: =SUMIF('Timesheet raw data'!$K:$K,$C42& " " & $D42&"-"&TEXT(YEAR(F$27),"0000")&"-"&TEXT(MONTH(F$27),"00"),'Timesheet raw data'!$E:$E)/8 -> 0 | G42: =SUMIF('Timesheet raw data'!$K:$K,$C42& " " & $D42&"-"&TEXT(YEAR(G$27),"0000")&"-"&TEXT(MONTH(G$27),"00"),'Timesheet raw data'!$E:$E)/8 -> 0 | H42: =SUMIF('Timesheet raw data'!$K:$K,$C42& " " & $D42&"-"&TEXT(YEAR(H$27),"0000")&"-"&TEXT(MONTH(H$27),"00"),'Timesheet raw data'!$E:$E)/8 -> 0 | I42: =I20 -> 0 | J42: 0 | K42: 0 | L42: 5 | M42: 15 | N42: 15 | O42: 15 | P42: 15 | Q42: 15 | R42: 15 | S42: 5 | T42: 0 | V42: 100
C43: Tenant 5 | D43: Incident Management | E43: =SUMIF('Timesheet raw data'!$K:$K,$C43& " " & $D43&"-"&TEXT(YEAR(E$27),"0000")&"-"&TEXT(MONTH(E$27),"00"),'Timesheet raw data'!$E:$E)/8 -> 0 | F43: =SUMIF('Timesheet raw data'!$K:$K,$C43& " " & $D43&"-"&TEXT(YEAR(F$27),"0000")&"-"&TEXT(MONTH(F$27),"00"),'Timesheet raw data'!$E:$E)/8 -> 0 | G43: =SUMIF('Timesheet raw data'!$K:$K,$C43& " " & $D43&"-"&TEXT(YEAR(G$27),"0000")&"-"&TEXT(MONTH(G$27),"00"),'Timesheet raw data'!$E:$E)/8 -> 0 | H43: =SUMIF('Timesheet raw data'!$K:$K,$C43& " " & $D43&"-"&TEXT(YEAR(H$27),"0000")&"-"&TEXT(MONTH(H$27),"00"),'Timesheet raw data'!$E:$E)/8 -> 0 | I43: =I21 -> 0 | J43: 0 | K43: 0 | L43: 0 | M43: 10 | N43: 20 | O43: 20 | P43: 20 | Q43: 20 | R43: 20 | S43: 5 | T43: 5 | V43: 120

Sheet Bottom-up Prg. Status
A1: TandMstatus
B2: Bottom-up Program Status
B3: Program: | C3: =Cover.ProgramName -> DEMO
B4: CUSTOMER "DEMO" IMPLEMENTATION PROGRAM
B5: PROGRAM STATUS DATE: | C5: =MAX('Timesheet raw data'!C:C) -> 2011-12-16 | E5: Update T&M status weekly!
B7: PROGRAM WORK PER RESOURCE NAME
B8: Resource Name | C8: Worked hours | D8: Rate per hour | E8: Role
B9: Offshore Consultant1 | C9: =SUMIF('Timesheet raw data'!B:B,B9,'Timesheet raw data'!E:E) -> 146 | D9: =VLOOKUP(E9,$B$37:$I$44,2,FALSE) -> 65 | E9: Offshore Consultant
B10: Associate Consultant1 | C10: =SUMIF('Timesheet raw data'!B:B,B10,'Timesheet raw data'!E:E) -> 0 | D10: 75 | E10: Associate Consultant
B11: Sr Consultant1 | C11: =SUMIF('Timesheet raw data'!B:B,B11,'Timesheet raw data'!E:E) -> 55 | D11: 90 | E11: Sr Consultant
B12: Sr Consultant2 | C12: =SUMIF('Timesheet raw data'!B:B,B12,'Timesheet raw data'!E:E) -> 12 | D12: 90 | E12: Sr Consultant
B13: Architect1 | C13: =SUMIF('Timesheet raw data'!B:B,B13,'Timesheet raw data'!E:E) -> 6 | D13: 96 | E13: Architect
B14: Project Manager1 | C14: =SUMIF('Timesheet raw data'!B:B,B14,'Timesheet raw data'!E:E) -> 74 | D14: 100 | E14: Project Manager
B15: Associate Consultant2 | C15: =SUMIF('Timesheet raw data'!B:B,B15,'Timesheet raw data'!E:E) -> 41.5 | D15: 75 | E15: Associate Consultant
B16: Architect2 | C16: =SUMIF('Timesheet raw data'!B:B,B16,'Timesheet raw data'!E:E) -> 71 | D16: 96 | E16: Architect
B17: Sr Consultant3 | C17: =SUMIF('Timesheet raw data'!B:B,B17,'Timesheet raw data'!E:E) -> 0 | D17: 90 | E17: Sr Consultant
B18: Offshore Consultant2 | C18: =SUMIF('Timesheet raw data'!B:B,B18,'Timesheet raw data'!E:E) -> 120 | D18: 65 | E18: Offshore Consultant
B19: Offshore Consultant3 | C19: =SUMIF('Timesheet raw data'!B:B,B19,'Timesheet raw data'!E:E) -> 0 | D19: 65 | E19: Offshore Consultant
B20: Sr Consultant4 | C20: =SUMIF('Timesheet raw data'!B:B,B20,'Timesheet raw data'!E:E) -> 340 | D20: 90 | E20: Sr Consultant
B21: Architect3 | C21: =SUMIF('Timesheet raw data'!B:B,B21,'Timesheet raw data'!E:E) -> 262.25 | D21: 96 | E21: Architect
B23: Checksum over Roles | C23: =SUM(C9:C21) -> 1127.75 | D23: hours
B24: Checksum over Projects | C24: =C49+C64 -> 1127.75 | D24: hours
B26: PROGRAM WORK PER ROLE
C27: Actual hrs. | D27: Avail. Days | E27: Avail. hrs. | F27: Total hrs. SOW | G27: Base hrs. | H27: CR hrs.
B28: Sum | C28: =SUM(C29:C34) -> 1127.75 | D28: =E28/8 -> 1359.03125 | E28: =SUM(E29:E34) -> 10872.25 | F28: =SUM(F29:F34) -> 12000 | G28: =SUM(G29:G34) -> 12300 | H28: =SUM(H29:H34) -> 0
B29: Sr Consultant | C29: =SUMIF($E$9:$E$21,B29,$C$9:$C$21) -> 407 | D29: =E29/8 -> 306.125 | E29: =F29-C29 -> 2449 | F29: 2856 | G29: 3000 | H29: 0
B30: Architect | C30: =SUMIF($E$9:$E$21,B30,$C$9:$C$21) -> 339.25 | D30: 312.59375 | E30: =F30-C30 -> 2500.75 | F30: 2840 | G30: 3000 | H30: 0
B31: Offshore Consultant | C31: 266 | D31: 216.75 | E31: 1734 | F31: =G31+H31 -> 2000 | G31: 2000 | H31: 0
B32: Associate Consultant | C32: 41.5 | D32: 182.3125 | E32: 1458.5 | F32: 1500 | G32: 1500 | H32: 0
B33: Consultant | C33: 0 | D33: 100.5 | E33: 804 | F33: 804 | G33: 800 | H33: 0
B34: Project Manager | C34: 74 | D34: 240.75 | E34: 1926 | F34: 2000 | G34: 2000 | H34: 0
B36: PROGRAM FINANCIALS PER ROLE | J36: Program Revenue | K36: =SUM(K37:K43) -> 97000.5 | L36: Month
D37: Actual | E37: Avail | G37: Total SOW | H37: Base | I37: CR | J37: Month | L37: 2012-03-01 | M37: =SUMIF($J$47:$J$911,L37,$K$47:$K$911) -> 0
B38: Sum | C38: Hrl. Rate | D38: =SUM(D39:D44) -> 97000.5 | E38: =G38-D38 -> 967499.5 | G38: =SUM(G39:G44) -> 1064500 | H38: =SUM(H39:H44) -> 1064500 | I38: =SUM(I39:I44) -> 0 | J38: 2011-09-01 | K38: =SUMIF($J$47:$J$911,J38,$K$47:$K$911) -> 4464 | L38: 2012-04-01 | M38: 0
B39: Sr Consultant | C39: 90 | D39: =$C39*C29 -> 36630 | E39: =G39-D39 -> 233370 | G39: =H39+I39 -> 270000 | H39: =$C39*G29 -> 270000 | I39: 0 | J39: 2011-10-01 | K39: 31193 | L39: 2012-05-01 | M39: 0
B40: Architect | C40: 96 | D40: 32568 | E40: 255432 | G40: =H40+I40 -> 288000 | H40: 288000 | I40: 0 | J40: 2011-11-01 | K40: 40903.5 | L40: 2012-06-01 | M40: 0
B41: Offshore Consultant | C41: 65 | D41: 17290 | E41: 112710 | G41: =H41+I41 -> 130000 | H41: 130000 | I41: 0 | J41: 2011-12-01 | K41: 20440 | L41: 2012-07-01 | M41: 0
B42: Associate Consultant | C42: 75 | D42: 3112.5 | E42: 109387.5 | G42: =H42+I42 -> 112500 | H42: 112500 | I42: 0 | J42: 2012-01-01 | K42: 0 | L42: 2012-08-01 | M42: 0
B43: Consultant | C43: 80 | D43: 0 | E43: 64000 | G43: 64000 | H43: 64000 | I43: 0 | J43: 2012-02-01 | K43: 0 | L43: 2012-09-01 | M43: 0
B44: Project Manager | C44: 100 | D44: 7400 | E44: 192600 | G44: 200000 | H44: 200000 | I44: 0
B46: PROJECTS
B47: Project TM1 | C47: Tenant1 Incident Management | J47: Project revenue | K47: =SUM(K48:K60)+SUM(M48:M60) -> 70874.5 | L47: Month
C48: Actual hrs. | D48: Avail. Days | E48: Avail. hrs. | F48: Total hrs. SOW | G48: Base hrs. | H48: CR hrs. | I48: CV | J48: Month | L48: 2012-03-01 | M48: =SUMIF('Timesheet raw data'!N:N,$C$47&"-"&TEXT(YEAR(L48),"0000")&"-"&TEXT(MONTH(L48),"00"),'Timesheet raw data'!I:I) -> 0
B49: Sum | C49: =SUM(C50:C54) -> 851.75 | D49: =E49/8 -> 24.78125 | E49: =SUM(E50:E54) -> 198.25 | F49: =SUM(F50:F54) -> 1050 | G49: =SUM(G50:G54) -> 960 | H49: =SUM(H50:H54) -> 90 | I49: =SUM(I50:I54) -> 90058 | J49: 2011-09-01 | K49: =SUMIF('Timesheet raw data'!K:K,$C$47&"-"&TEXT(YEAR(J49),"0000")&"-"&TEXT(MONTH(J49),"00"),'Timesheet raw data'!G:G) -> 2160
B50: Sr Consultant | C50: =SUMIF('Timesheet raw data'!J:J,C$47&B50,'Timesheet raw data'!E:E) -> 334 | D50: =E50/8 -> 7.25 | E50: =F50-C50 -> 58 | F50: =G50+H50 -> 392 | G50: =45*8 -> 360 | H50: 32 | I50: =F50*C39 -> 35280 | L50: 2012-04-01 | M50: =SUMIF('Timesheet raw data'!N:N,$C$47&"-"&TEXT(YEAR(L50),"0000")&"-"&TEXT(MONTH(L50),"00"),'Timesheet raw data'!I:I) -> 0
B51: Architect | C51: =SUMIF('Timesheet raw data'!J:J,C$47&B51,'Timesheet raw data'!E:E) -> 153.25 | D51: 1.84375 | E51: 14.75 | F51: =G51+H51 -> 168 | G51: =20*8 -> 160 | H51: 8 | I51: =F51*C40 -> 16128 | J51: 2011-10-01 | K51: =SUMIF('Timesheet raw data'!K:K,$C$47&"-"&TEXT(YEAR(J51),"0000")&"-"&TEXT(MONTH(J51),"00"),'Timesheet raw data'!G:G) -> 31193
B52: Offshore Consultant | C52: =SUMIF('Timesheet raw data'!J:J,C$47&B52,'Timesheet raw data'!E:E) -> 266 | D52: -7 | E52: -56 | F52: 210 | G52: =20*8 -> 160 | H52: 50 | I52: =F52*C41 -> 13650 | L52: 2012-05-01 | M52: =SUMIF('Timesheet raw data'!N:N,$C$47&"-"&TEXT(YEAR(L52),"0000")&"-"&TEXT(MONTH(L52),"00"),'Timesheet raw data'!I:I) -> 0
B53: Associate Consultant | C53: =SUMIF('Timesheet raw data'!J:J,C$47&B53,'Timesheet raw data'!E:E) -> 41.5 | D53: 9.8125 | E53: 78.5 | F53: 120 | G53: =15*8 -> 120 | H53: 0 | I53: =F53*C42 -> 9000 | J53: 2011-11-01 | K53: =SUMIF('Timesheet raw data'!K:K,$C$47&"-"&TEXT(YEAR(J53),"0000")&"-"&TEXT(MONTH(J53),"00"),'Timesheet raw data'!G:G) -> 24125.5
B54: Project Manager | C54: =SUMIF('Timesheet raw data'!J:J,C$47&B54,'Timesheet raw data'!E:E) -> 57 | D54: 12.875 | E54: 103 | F54: 160 | G54: =20*8 -> 160 | H54: 0 | I54: =F54*C44 -> 16000 | L54: 2012-06-01 | M54: =SUMIF('Timesheet raw data'!N:N,$C$47&"-"&TEXT(YEAR(L54),"0000")&"-"&TEXT(MONTH(L54),"00"),'Timesheet raw data'!I:I) -> 0
J55: 2011-12-01 | K55: =SUMIF('Timesheet raw data'!K:K,$C$47&"-"&TEXT(YEAR(J55),"0000")&"-"&TEXT(MONTH(J55),"00"),'Timesheet raw data'!G:G) -> 13396
L56: 2012-07-01 | M56: =SUMIF('Timesheet raw data'!N:N,$C$47&"-"&TEXT(YEAR(L56),"0000")&"-"&TEXT(MONTH(L56),"00"),'Timesheet raw data'!I:I) -> 0
J57: 2012-01-01 | K57: =SUMIF('Timesheet raw data'!K:K,$C$47&"-"&TEXT(YEAR(J57),"0000")&"-"&TEXT(MONTH(J57),"00"),'Timesheet raw data'!G:G) -> 0
L58: 2012-08-01 | M58: =SUMIF('Timesheet raw data'!N:N,$C$47&"-"&TEXT(YEAR(L58),"0000")&"-"&TEXT(MONTH(L58),"00"),'Timesheet raw data'!I:I) -> 0
J59: 2012-02-01 | K59: =SUMIF('Timesheet raw data'!K:K,$C$47&"-"&TEXT(YEAR(J59),"0000")&"-"&TEXT(MONTH(J59),"00"),'Timesheet raw data'!G:G) -> 0
L60: 2012-09-01 | M60: =SUMIF('Timesheet raw data'!N:N,$C$47&"-"&TEXT(YEAR(L60),"0000")&"-"&TEXT(MONTH(L60),"00"),'Timesheet raw data'!I:I) -> 0
B62: Project TM2 | C62: Tenant2 Incident Management | J62: Project revenue | K62: =SUM(K63:K75)+SUM(M63:M75) -> 26126 | L62: Month
C63: Actual hours | D63: Avail. Days | E63: Avail. Hrs. | F63: Total SOW | G63: Base | H63: CR | J63: Month | L63: 2012-03-01 | M63: =SUMIF('Timesheet raw data'!N:N,$C$62&"-"&TEXT(YEAR(L63),"0000")&"-"&TEXT(MONTH(L63),"00"),'Timesheet raw data'!I:I) -> 0
B64: Sum | C64: =SUM(C65:C69) -> 276 | D64: =E64/8 -> 65.5 | E64: =SUM(E65:E69) -> 524 | F64: =SUM(F65:F69) -> 800 | G64: =SUM(G65:G69) -> 800 | H64: =SUM(H65:H69) -> 0 | I64: =SUM(I65:I69) -> 72160 | J64: 2011-09-01 | K64: =SUMIF('Timesheet raw data'!K:K,$C$62&"-"&TEXT(YEAR(J64),"0000")&"-"&TEXT(MONTH(J64),"00"),'Timesheet raw data'!G:G) -> 2304
B65: Sr Consultant | C65: =SUMIF('Timesheet raw data'!J:J,$C$62&B65,'Timesheet raw data'!E:E) -> 73 | D65: =E65/8 -> 30.875 | E65: =F65-C65 -> 247 | F65: =G65+H65 -> 320 | G65: =40*8 -> 320 | H65: 0 | I65: =F65*C39 -> 28800 | L65: 2012-04-01 | M65: =SUMIF('Timesheet raw data'!N:N,$C$62&"-"&TEXT(YEAR(L65),"0000")&"-"&TEXT(MONTH(L65),"00"),'Timesheet raw data'!I:I) -> 0
B66: Architect | C66: =SUMIF('Timesheet raw data'!J:J,$C$62&B66,'Timesheet raw data'!E:E) -> 186 | D66: -3.25 | E66: -26 | F66: =G66+H66 -> 160 | G66: =20*8 -> 160 | H66: 0 | I66: =F66*C40 -> 15360 | J66: 2011-10-01 | K66: =SUMIF('Timesheet raw data'!K:K,$C$62&"-"&TEXT(YEAR(J66),"0000")&"-"&TEXT(MONTH(J66),"00"),'Timesheet raw data'!G:G) -> 0
B67: Offshore Consultant | C67: =SUMIF('Timesheet raw data'!J:J,$C$62&B67,'Timesheet raw data'!E:E) -> 0 | D67: 0 | E67: 0 | F67: 0 | G67: 0 | H67: 0 | I67: =F67*C41 -> 0 | L67: 2012-05-01 | M67: =SUMIF('Timesheet raw data'!N:N,$C$62&"-"&TEXT(YEAR(L67),"0000")&"-"&TEXT(MONTH(L67),"00"),'Timesheet raw data'!I:I) -> 0
B68: Associate Consultant | C68: =SUMIF('Timesheet raw data'!J:J,$C$62&B68,'Timesheet raw data'!E:E) -> 0 | D68: 20 | E68: 160 | F68: 160 | G68: =20*8 -> 160 | H68: 0 | I68: =F68*C42 -> 12000 | J68: 2011-11-01 | K68: =SUMIF('Timesheet raw data'!K:K,$C$62&"-"&TEXT(YEAR(J68),"0000")&"-"&TEXT(MONTH(J68),"00"),'Timesheet raw data'!G:G) -> 16778
B69: Project Manager | C69: =SUMIF('Timesheet raw data'!J:J,$C$62&B69,'Timesheet raw data'!E:E) -> 17 | D69: 17.875 | E69: 143 | F69: 160 | G69: =20*8 -> 160 | H69: 0 | I69: =F69*C44 -> 16000 | L69: 2012-06-01 | M69: =SUMIF('Timesheet raw data'!N:N,$C$62&"-"&TEXT(YEAR(L69),"0000")&"-"&TEXT(MONTH(L69),"00"),'Timesheet raw data'!I:I) -> 0
J70: 2011-12-01 | K70: =SUMIF('Timesheet raw data'!K:K,$C$62&"-"&TEXT(YEAR(J70),"0000")&"-"&TEXT(MONTH(J70),"00"),'Timesheet raw data'!G:G) -> 7044
L71: 2012-07-01 | M71: =SUMIF('Timesheet raw data'!N:N,$C$62&"-"&TEXT(YEAR(L71),"0000")&"-"&TEXT(MONTH(L71),"00"),'Timesheet raw data'!I:I) -> 0
J72: 2012-01-01 | K72: =SUMIF('Timesheet raw data'!K:K,$C$62&"-"&TEXT(YEAR(J72),"0000")&"-"&TEXT(MONTH(J72),"00"),'Timesheet raw data'!G:G) -> 0
L73: 2012-08-01 | M73: =SUMIF('Timesheet raw data'!N:N,$C$62&"-"&TEXT(YEAR(L73),"0000")&"-"&TEXT(MONTH(L73),"00"),'Timesheet raw data'!I:I) -> 0
J74: 2012-02-01 | K74: =SUMIF('Timesheet raw data'!K:K,$C$62&"-"&TEXT(YEAR(J74),"0000")&"-"&TEXT(MONTH(J74),"00"),'Timesheet raw data'!G:G) -> 0
L75: 2012-09-01 | M75: =SUMIF('Timesheet raw data'!N:N,$C$62&"-"&TEXT(YEAR(L75),"0000")&"-"&TEXT(MONTH(L75),"00"),'Timesheet raw data'!I:I) -> 0
B79: Over time add below further projects here

Sheet Timesheet raw data
A1: Timesheet
C2: Timesheet raw data
B3: Program: | C3: =Cover.ProgramName -> DEMO
B4: Enter timesheet data weekly!
B5: Name | C5: Date | D5: Project | E5: Hours | F5: Month | G5: BillAmt | H5: Hrl Rate | I5: Role | J5: Hidden_Project+Role | K5: Hidden_Project_Month
B6: Architect2 | C6: 2011-09-06 | D6: Tenant2 Incident Management | E6: 2 | F6: =IF(C6<>"",TEXT(YEAR(C6),"0000")&"-"&TEXT(MONTH(C6),"00"),"") -> 2011-09 | G6: =VLOOKUP(B6,Program.ResourceTable,3,FALSE)*E6 -> 192 | H6: =IF('Timesheet raw data'!E6>0,'Timesheet raw data'!G6/'Timesheet raw data'!E6,"") -> 96 | I6: =IF(H6<>"",VLOOKUP(H6,Program.RateTable,2,FALSE),"") -> Architect | J6: ='Timesheet raw data'!D6&I6 -> Tenant2 Incident ManagementArchitect | K6: =IF('Timesheet raw data'!D6<>"",'Timesheet raw data'!D6&"-"&'Timesheet raw data'!F6,"") -> Tenant2 Incident Management-2011-09
B7: Architect2 | C7: 2011-09-06 | D7: Tenant2 Incident Management | E7: 4 | F7: =IF(C7<>"",TEXT(YEAR(C7),"0000")&"-"&TEXT(MONTH(C7),"00"),"") -> 2011-09 | G7: 384 | H7: =IF('Timesheet raw data'!E7>0,'Timesheet raw data'!G7/'Timesheet raw data'!E7,"") -> 96 | I7: Architect | J7: ='Timesheet raw data'!D7&I7 -> Tenant2 Incident ManagementArchitect | K7: =IF('Timesheet raw data'!D7<>"",'Timesheet raw data'!D7&"-"&'Timesheet raw data'!F7,"") -> Tenant2 Incident Management-2011-09
B8: Architect2 | C8: 2011-09-07 | D8: Tenant2 Incident Management | E8: 2 | F8: 2011-09 | G8: 192 | H8: =IF('Timesheet raw data'!E8>0,'Timesheet raw data'!G8/'Timesheet raw data'!E8,"") -> 96 | I8: Architect | J8: ='Timesheet raw data'!D8&I8 -> Tenant2 Incident ManagementArchitect | K8: =IF('Timesheet raw data'!D8<>"",'Timesheet raw data'!D8&"-"&'Timesheet raw data'!F8,"") -> Tenant2 Incident Management-2011-09
B9: Architect2 | C9: 2011-09-09 | D9: Tenant2 Incident Management | E9: 2 | F9: 2011-09 | G9: 192 | H9: =IF('Timesheet raw data'!E9>0,'Timesheet raw data'!G9/'Timesheet raw data'!E9,"") -> 96 | I9: Architect | J9: ='Timesheet raw data'!D9&I9 -> Tenant2 Incident ManagementArchitect | K9: =IF('Timesheet raw data'!D9<>"",'Timesheet raw data'!D9&"-"&'Timesheet raw data'!F9,"") -> Tenant2 Incident Management-2011-09
B10: Architect2 | C10: 2011-09-12 | D10: Tenant2 Incident Management | E10: 2 | F10: 2011-09 | G10: 192 | H10: =IF('Timesheet raw data'!E10>0,'Timesheet raw data'!G10/'Timesheet raw data'!E10,"") -> 96 | I10: Architect | J10: ='Timesheet raw data'!D10&I10 -> Tenant2 Incident ManagementArchitect | K10: =IF('Timesheet raw data'!D10<>"",'Timesheet raw data'!D10&"-"&'Timesheet raw data'!F10,"") -> Tenant2 Incident Management-2011-09
B11: Architect2 | C11: 2011-09-13 | D11: Tenant1 Incident Management | E11: 2 | F11: 2011-09 | G11: 192 | H11: =IF('Timesheet raw data'!E11>0,'Timesheet raw data'!G11/'Timesheet raw data'!E11,"") -> 96 | I11: Architect | J11: ='Timesheet raw data'!D11&I11 -> Tenant1 Incident ManagementArchitect | K11: =IF('Timesheet raw data'!D11<>"",'Timesheet raw data'!D11&"-"&'Timesheet raw data'!F11,"") -> Tenant1 Incident Management-2011-09
B12: Architect2 | C12: 2011-09-13 | D12: Tenant2 Incident Management | E12: 2 | F12: 2011-09 | G12: 192 | H12: =IF('Timesheet raw data'!E12>0,'Timesheet raw data'!G12/'Timesheet raw data'!E12,"") -> 96 | I12: Architect | J12: ='Timesheet raw data'!D12&I12 -> Tenant2 Incident ManagementArchitect | K12: =IF('Timesheet raw data'!D12<>"",'Timesheet raw data'!D12&"-"&'Timesheet raw data'!F12,"") -> Tenant2 Incident Management-2011-09
B13: Architect3 | C13: 2011-09-13 | D13: Tenant2 Incident Management | E13: 6 | F13: 2011-09 | G13: 576 | H13: =IF('Timesheet raw data'!E13>0,'Timesheet raw data'!G13/'Timesheet raw data'!E13,"") -> 96 | I13: Architect | J13: ='Timesheet raw data'!D13&I13 -> Tenant2 Incident ManagementArchitect | K13: =IF('Timesheet raw data'!D13<>"",'Timesheet raw data'!D13&"-"&'Timesheet raw data'!F13,"") -> Tenant2 Incident Management-2011-09
B14: Architect2 | C14: 2011-09-14 | D14: Tenant1 Incident Management | E14: 4 | F14: 2011-09 | G14: 384 | H14: =IF('Timesheet raw data'!E14>0,'Timesheet raw data'!G14/'Timesheet raw data'!E14,"") -> 96 | I14: Architect | J14: ='Timesheet raw data'!D14&I14 -> Tenant1 Incident ManagementArchitect | K14: =IF('Timesheet raw data'!D14<>"",'Timesheet raw data'!D14&"-"&'Timesheet raw data'!F14,"") -> Tenant1 Incident Management-2011-09
B15: Architect2 | C15: 2011-09-14 | D15: Tenant2 Incident Management | E15: 2 | F15: 2011-09 | G15: 192 | H15: =IF('Timesheet raw data'!E15>0,'Timesheet raw data'!G15/'Timesheet raw data'!E15,"") -> 96 | I15: Architect | J15: ='Timesheet raw data'!D15&I15 -> Tenant2 Incident ManagementArchitect | K15: =IF('Timesheet raw data'!D15<>"",'Timesheet raw data'!D15&"-"&'Timesheet raw data'!F15,"") -> Tenant2 Incident Management-2011-09
B16: Architect3 | C16: 2011-09-14 | D16: Tenant2 Incident Management | E16: 2 | F16: 2011-09 | G16: 192 | H16: =IF('Timesheet raw data'!E16>0,'Timesheet raw data'!G16/'Timesheet raw data'!E16,"") -> 96 | I16: Architect | J16: ='Timesheet raw data'!D16&I16 -> Tenant2 Incident ManagementArchitect | K16: =IF('Timesheet raw data'!D16<>"",'Timesheet raw data'!D16&"-"&'Timesheet raw data'!F16,"") -> Tenant2 Incident Management-2011-09
B17: Architect2 | C17: 2011-09-16 | D17: Tenant1 Incident Management | E17: 4 | F17: 2011-09 | G17: 384 | H17: =IF('Timesheet raw data'!E17>0,'Timesheet raw data'!G17/'Timesheet raw data'!E17,"") -> 96 | I17: Architect | J17: ='Timesheet raw data'!D17&I17 -> Tenant1 Incident ManagementArchitect | K17: =IF('Timesheet raw data'!D17<>"",'Timesheet raw data'!D17&"-"&'Timesheet raw data'!F17,"") -> Tenant1 Incident Management-2011-09
B18: Project Manager1 | C18: 2011-09-22 | D18: Tenant1 Incident Management | E18: 6 | F18: 2011-09 | G18: 600 | H18: =IF('Timesheet raw data'!E18>0,'Timesheet raw data'!G18/'Timesheet raw data'!E18,"") -> 100 | I18: Project Manager | J18: ='Timesheet raw data'!D18&I18 -> Tenant1 Incident ManagementProject Manager | K18: =IF('Timesheet raw data'!D18<>"",'Timesheet raw data'!D18&"-"&'Timesheet raw data'!F18,"") -> Tenant1 Incident Management-2011-09
B19: Project Manager1 | C19: 2011-09-26 | D19: Tenant1 Incident Management | E19: 1 | F19: 2011-09 | G19: 100 | H19: =IF('Timesheet raw data'!E19>0,'Timesheet raw data'!G19/'Timesheet raw data'!E19,"") -> 100 | I19: Project Manager | J19: ='Timesheet raw data'!D19&I19 -> Tenant1 Incident ManagementProject Manager | K19: =IF('Timesheet raw data'!D19<>"",'Timesheet raw data'!D19&"-"&'Timesheet raw data'!F19,"") -> Tenant1 Incident Management-2011-09
B20: Project Manager1 | C20: 2011-09-27 | D20: Tenant1 Incident Management | E20: 2 | F20: 2011-09 | G20: 200 | H20: =IF('Timesheet raw data'!E20>0,'Timesheet raw data'!G20/'Timesheet raw data'!E20,"") -> 100 | I20: Project Manager | J20: ='Timesheet raw data'!D20&I20 -> Tenant1 Incident ManagementProject Manager | K20: =IF('Timesheet raw data'!D20<>"",'Timesheet raw data'!D20&"-"&'Timesheet raw data'!F20,"") -> Tenant1 Incident Management-2011-09
B21: Project Manager1 | C21: 2011-09-28 | D21: Tenant1 Incident Management | E21: 2 | F21: 2011-09 | G21: 200 | H21: =IF('Timesheet raw data'!E21>0,'Timesheet raw data'!G21/'Timesheet raw data'!E21,"") -> 100 | I21: Project Manager | J21: ='Timesheet raw data'!D21&I21 -> Tenant1 Incident ManagementProject Manager | K21: =IF('Timesheet raw data'!D21<>"",'Timesheet raw data'!D21&"-"&'Timesheet raw data'!F21,"") -> Tenant1 Incident Management-2011-09
B22: Project Manager1 | C22: 2011-09-30 | D22: Tenant1 Incident Management | E22: 1 | F22: 2011-09 | G22: 100 | H22: =IF('Timesheet raw data'!E22>0,'Timesheet raw data'!G22/'Timesheet raw data'!E22,"") -> 100 | I22: Project Manager | J22: ='Timesheet raw data'!D22&I22 -> Tenant1 Incident ManagementProject Manager | K22: =IF('Timesheet raw data'!D22<>"",'Timesheet raw data'!D22&"-"&'Timesheet raw data'!F22,"") -> Tenant1 Incident Management-2011-09
B23: Offshore Consultant1 | C23: 2011-10-03 | D23: Tenant1 Incident Management | E23: 2 | F23: 2011-10 | G23: 130 | H23: =IF('Timesheet raw data'!E23>0,'Timesheet raw data'!G23/'Timesheet raw data'!E23,"") -> 65 | I23: Offshore Consultant | J23: ='Timesheet raw data'!D23&I23 -> Tenant1 Incident ManagementOffshore Consultant | K23: =IF('Timesheet raw data'!D23<>"",'Timesheet raw data'!D23&"-"&'Timesheet raw data'!F23,"") -> Tenant1 Incident Management-2011-10
B24: Project Manager1 | C24: 2011-10-03 | D24: Tenant1 Incident Management | E24: 6 | F24: 2011-10 | G24: 600 | H24: =IF('Timesheet raw data'!E24>0,'Timesheet raw data'!G24/'Timesheet raw data'!E24,"") -> 100 | I24: Project Manager | J24: ='Timesheet raw data'!D24&I24 -> Tenant1 Incident ManagementProject Manager | K24: =IF('Timesheet raw data'!D24<>"",'Timesheet raw data'!D24&"-"&'Timesheet raw data'!F24,"") -> Tenant1 Incident Management-2011-10
B25: Sr Consultant4 | C25: 2011-10-03 | D25: Tenant1 Incident Management | E25: 8 | F25: 2011-10 | G25: 720 | H25: =IF('Timesheet raw data'!E25>0,'Timesheet raw data'!G25/'Timesheet raw data'!E25,"") -> 90 | I25: Sr Consultant | J25: ='Timesheet raw data'!D25&I25 -> Tenant1 Incident ManagementSr Consultant | K25: =IF('Timesheet raw data'!D25<>"",'Timesheet raw data'!D25&"-"&'Timesheet raw data'!F25,"") -> Tenant1 Incident Management-2011-10
B26: Architect3 | C26: 2011-10-03 | D26: Tenant1 Incident Management | E26: 8 | F26: 2011-10 | G26: 768 | H26: =IF('Timesheet raw data'!E26>0,'Timesheet raw data'!G26/'Timesheet raw data'!E26,"") -> 96 | I26: Architect | J26: ='Timesheet raw data'!D26&I26 -> Tenant1 Incident ManagementArchitect | K26: =IF('Timesheet raw data'!D26<>"",'Timesheet raw data'!D26&"-"&'Timesheet raw data'!F26,"") -> Tenant1 Incident Management-2011-10
B27: Offshore Consultant1 | C27: 2011-10-04 | D27: Tenant1 Incident Management | E27: 4 | F27: 2011-10 | G27: 260 | H27: =IF('Timesheet raw data'!E27>0,'Timesheet raw data'!G27/'Timesheet raw data'!E27,"") -> 65 | I27: Offshore Consultant | J27: ='Timesheet raw data'!D27&I27 -> Tenant1 Incident ManagementOffshore Consultant | K27: =IF('Timesheet raw data'!D27<>"",'Timesheet raw data'!D27&"-"&'Timesheet raw data'!F27,"") -> Tenant1 Incident Management-2011-10
B28: Architect1 | C28: 2011-10-04 | D28: Tenant1 Incident Management | E28: 6 | F28: 2011-10 | G28: 576 | H28: =IF('Timesheet raw data'!E28>0,'Timesheet raw data'!G28/'Timesheet raw data'!E28,"") -> 96 | I28: Architect | J28: ='Timesheet raw data'!D28&I28 -> Tenant1 Incident ManagementArchitect | K28: =IF('Timesheet raw data'!D28<>"",'Timesheet raw data'!D28&"-"&'Timesheet raw data'!F28,"") -> Tenant1 Incident Management-2011-10
B29: Project Manager1 | C29: 2011-10-04 | D29: Tenant1 Incident Management | E29: 3 | F29: 2011-10 | G29: 300 | H29: =IF('Timesheet raw data'!E29>0,'Timesheet raw data'!G29/'Timesheet raw data'!E29,"") -> 100 | I29: Project Manager | J29: ='Timesheet raw data'!D29&I29 -> Tenant1 Incident ManagementProject Manager | K29: =IF('Timesheet raw data'!D29<>"",'Timesheet raw data'!D29&"-"&'Timesheet raw data'!F29,"") -> Tenant1 Incident Management-2011-10
B30: Sr Consultant4 | C30: 2011-10-04 | D30: Tenant1 Incident Management | E30: 8 | F30: 2011-10 | G30: 720 | H30: =IF('Timesheet raw data'!E30>0,'Timesheet raw data'!G30/'Timesheet raw data'!E30,"") -> 90 | I30: Sr Consultant | J30: ='Timesheet raw data'!D30&I30 -> Tenant1 Incident ManagementSr Consultant | K30: =IF('Timesheet raw data'!D30<>"",'Timesheet raw data'!D30&"-"&'Timesheet raw data'!F30,"") -> Tenant1 Incident Management-2011-10
B31: Architect3 | C31: 2011-10-04 | D31: Tenant1 Incident Management | E31: 4 | F31: 2011-10 | G31: 384 | H31: =IF('Timesheet raw data'!E31>0,'Timesheet raw data'!G31/'Timesheet raw data'!E31,"") -> 96 | I31: Architect | J31: ='Timesheet raw data'!D31&I31 -> Tenant1 Incident ManagementArchitect | K31: =IF('Timesheet raw data'!D31<>"",'Timesheet raw data'!D31&"-"&'Timesheet raw data'!F31,"") -> Tenant1 Incident Management-2011-10
B32: Offshore Consultant1 | C32: 2011-10-05 | D32: Tenant1 Incident Management | E32: 2 | F32: 2011-10 | G32: 130 | H32: =IF('Timesheet raw data'!E32>0,'Timesheet raw data'!G32/'Timesheet raw data'!E32,"") -> 65 | I32: Offshore Consultant | J32: ='Timesheet raw data'!D32&I32 -> Tenant1 Incident ManagementOffshore Consultant | K32: =IF('Timesheet raw data'!D32<>"",'Timesheet raw data'!D32&"-"&'Timesheet raw data'!F32,"") -> Tenant1 Incident Management-2011-10
B33: Project Manager1 | C33: 2011-10-05 | D33: Tenant1 Incident Management | E33: 1 | F33: 2011-10 | G33: 100 | H33: =IF('Timesheet raw data'!E33>0,'Timesheet raw data'!G33/'Timesheet raw data'!E33,"") -> 100 | I33: Project Manager | J33: ='Timesheet raw data'!D33&I33 -> Tenant1 Incident ManagementProject Manager | K33: =IF('Timesheet raw data'!D33<>"",'Timesheet raw data'!D33&"-"&'Timesheet raw data'!F33,"") -> Tenant1 Incident Management-2011-10
B34: Sr Consultant4 | C34: 2011-10-05 | D34: Tenant1 Incident Management | E34: 8 | F34: 2011-10 | G34: 720 | H34: =IF('Timesheet raw data'!E34>0,'Timesheet raw data'!G34/'Timesheet raw data'!E34,"") -> 90 | I34: Sr Consultant | J34: ='Timesheet raw data'!D34&I34 -> Tenant1 Incident ManagementSr Consultant | K34: =IF('Timesheet raw data'!D34<>"",'Timesheet raw data'!D34&"-"&'Timesheet raw data'!F34,"") -> Tenant1 Incident Management-2011-10
B35: Architect3 | C35: 2011-10-05 | D35: Tenant1 Incident Management | E35: 4 | F35: 2011-10 | G35: 384 | H35: =IF('Timesheet raw data'!E35>0,'Timesheet raw data'!G35/'Timesheet raw data'!E35,"") -> 96 | I35: Architect | J35: ='Timesheet raw data'!D35&I35 -> Tenant1 Incident ManagementArchitect | K35: =IF('Timesheet raw data'!D35<>"",'Timesheet raw data'!D35&"-"&'Timesheet raw data'!F35,"") -> Tenant1 Incident Management-2011-10
B36: Sr Consultant4 | C36: 2011-10-06 | D36: Tenant1 Incident Management | E36: 8 | F36: 2011-10 | G36: 720 | H36: =IF('Timesheet raw data'!E36>0,'Timesheet raw data'!G36/'Timesheet raw data'!E36,"") -> 90 | I36: Sr Consultant | J36: ='Timesheet raw data'!D36&I36 -> Tenant1 Incident ManagementSr Consultant | K36: =IF('Timesheet raw data'!D36<>"",'Timesheet raw data'!D36&"-"&'Timesheet raw data'!F36,"") -> Tenant1 Incident Management-2011-10
B37: Architect3 | C37: 2011-10-06 | D37: Tenant1 Incident Management | E37: 6 | F37: 2011-10 | G37: 576 | H37: =IF('Timesheet raw data'!E37>0,'Timesheet raw data'!G37/'Timesheet raw data'!E37,"") -> 96 | I37: Architect | J37: ='Timesheet raw data'!D37&I37 -> Tenant1 Incident ManagementArchitect | K37: =IF('Timesheet raw data'!D37<>"",'Timesheet raw data'!D37&"-"&'Timesheet raw data'!F37,"") -> Tenant1 Incident Management-2011-10
B38: Offshore Consultant1 | C38: 2011-10-07 | D38: Tenant1 Incident Management | E38: 2 | F38: 2011-10 | G38: 130 | H38: =IF('Timesheet raw data'!E38>0,'Timesheet raw data'!G38/'Timesheet raw data'!E38,"") -> 65 | I38: Offshore Consultant | J38: ='Timesheet raw data'!D38&I38 -> Tenant1 Incident ManagementOffshore Consultant | K38: =IF('Timesheet raw data'!D38<>"",'Timesheet raw data'!D38&"-"&'Timesheet raw data'!F38,"") -> Tenant1 Incident Management-2011-10
B39: Project Manager1 | C39: 2011-10-07 | D39: Tenant1 Incident Management | E39: 1 | F39: 2011-10 | G39: 100 | H39: =IF('Timesheet raw data'!E39>0,'Timesheet raw data'!G39/'Timesheet raw data'!E39,"") -> 100 | I39: Project Manager | J39: ='Timesheet raw data'!D39&I39 -> Tenant1 Incident ManagementProject Manager | K39: =IF('Timesheet raw data'!D39<>"",'Timesheet raw data'!D39&"-"&'Timesheet raw data'!F39,"") -> Tenant1 Incident Management-2011-10
B40: Project Manager1 | C40: 2011-10-07 | D40: Tenant1 Incident Management | E40: 4 | F40: 2011-10 | G40: 400 | H40: =IF('Timesheet raw data'!E40>0,'Timesheet raw data'!G40/'Timesheet raw data'!E40,"") -> 100 | I40: Project Manager | J40: ='Timesheet raw data'!D40&I40 -> Tenant1 Incident ManagementProject Manager | K40: =IF('Timesheet raw data'!D40<>"",'Timesheet raw data'!D40&"-"&'Timesheet raw data'!F40,"") -> Tenant1 Incident Management-2011-10
B41: Project Manager1 | C41: 2011-10-07 | D41: Tenant1 Incident Management | E41: 1 | F41: 2011-10 | G41: 100 | H41: =IF('Timesheet raw data'!E41>0,'Timesheet raw data'!G41/'Timesheet raw data'!E41,"") -> 100 | I41: Project Manager | J41: ='Timesheet raw data'!D41&I41 -> Tenant1 Incident ManagementProject Manager | K41: =IF('Timesheet raw data'!D41<>"",'Timesheet raw data'!D41&"-"&'Timesheet raw data'!F41,"") -> Tenant1 Incident Management-2011-10
B42: Sr Consultant4 | C42: 2011-10-07 | D42: Tenant1 Incident Management | E42: 8 | F42: 2011-10 | G42: 720 | H42: =IF('Timesheet raw data'!E42>0,'Timesheet raw data'!G42/'Timesheet raw data'!E42,"") -> 90 | I42: Sr Consultant | J42: ='Timesheet raw data'!D42&I42 -> Tenant1 Incident ManagementSr Consultant | K42: =IF('Timesheet raw data'!D42<>"",'Timesheet raw data'!D42&"-"&'Timesheet raw data'!F42,"") -> Tenant1 Incident Management-2011-10
B43: Architect3 | C43: 2011-10-07 | D43: Tenant1 Incident Management | E43: 6 | F43: 2011-10 | G43: 576 | H43: =IF('Timesheet raw data'!E43>0,'Timesheet raw data'!G43/'Timesheet raw data'!E43,"") -> 96 | I43: Architect | J43: ='Timesheet raw data'!D43&I43 -> Tenant1 Incident ManagementArchitect | K43: =IF('Timesheet raw data'!D43<>"",'Timesheet raw data'!D43&"-"&'Timesheet raw data'!F43,"") -> Tenant1 Incident Management-2011-10
B44: Offshore Consultant1 | C44: 2011-10-10 | D44: Tenant1 Incident Management | E44: 4 | F44: 2011-10 | G44: 260 | H44: =IF('Timesheet raw data'!E44>0,'Timesheet raw data'!G44/'Timesheet raw data'!E44,"") -> 65 | I44: Offshore Consultant | J44: ='Timesheet raw data'!D44&I44 -> Tenant1 Incident ManagementOffshore Consultant | K44: =IF('Timesheet raw data'!D44<>"",'Timesheet raw data'!D44&"-"&'Timesheet raw data'!F44,"") -> Tenant1 Incident Management-2011-10
B45: Project Manager1 | C45: 2011-10-10 | D45: Tenant1 Incident Management | E45: 4 | F45: 2011-10 | G45: 400 | H45: =IF('Timesheet raw data'!E45>0,'Timesheet raw data'!G45/'Timesheet raw data'!E45,"") -> 100 | I45: Project Manager | J45: ='Timesheet raw data'!D45&I45 -> Tenant1 Incident ManagementProject Manager | K45: =IF('Timesheet raw data'!D45<>"",'Timesheet raw data'!D45&"-"&'Timesheet raw data'!F45,"") -> Tenant1 Incident Management-2011-10
B46: Associate Consultant2 | C46: 2011-10-10 | D46: Tenant1 Incident Management | E46: 4 | F46: 2011-10 | G46: 300 | H46: =IF('Timesheet raw data'!E46>0,'Timesheet raw data'!G46/'Timesheet raw data'!E46,"") -> 75 | I46: Associate Consultant | J46: ='Timesheet raw data'!D46&I46 -> Tenant1 Incident ManagementAssociate Consultant | K46: =IF('Timesheet raw data'!D46<>"",'Timesheet raw data'!D46&"-"&'Timesheet raw data'!F46,"") -> Tenant1 Incident Management-2011-10
B47: Offshore Consultant2 | C47: 2011-10-10 | D47: Tenant1 Incident Management | E47: 4 | F47: 2011-10 | G47: 260 | H47: =IF('Timesheet raw data'!E47>0,'Timesheet raw data'!G47/'Timesheet raw data'!E47,"") -> 65 | I47: Offshore Consultant | J47: ='Timesheet raw data'!D47&I47 -> Tenant1 Incident ManagementOffshore Consultant | K47: =IF('Timesheet raw data'!D47<>"",'Timesheet raw data'!D47&"-"&'Timesheet raw data'!F47,"") -> Tenant1 Incident Management-2011-10
B48: Architect3 | C48: 2011-10-10 | D48: Tenant1 Incident Management | E48: 6 | F48: 2011-10 | G48: 576 | H48: =IF('Timesheet raw data'!E48>0,'Timesheet raw data'!G48/'Timesheet raw data'!E48,"") -> 96 | I48: Architect | J48: ='Timesheet raw data'!D48&I48 -> Tenant1 Incident ManagementArchitect | K48: =IF('Timesheet raw data'!D48<>"",'Timesheet raw data'!D48&"-"&'Timesheet raw data'!F48,"") -> Tenant1 Incident Management-2011-10
B49: Offshore Consultant1 | C49: 2011-10-11 | D49: Tenant1 Incident Management | E49: 2 | F49: 2011-10 | G49: 130 | H49: =IF('Timesheet raw data'!E49>0,'Timesheet raw data'!G49/'Timesheet raw data'!E49,"") -> 65 | I49: Offshore Consultant | J49: ='Timesheet raw data'!D49&I49 -> Tenant1 Incident ManagementOffshore Consultant | K49: =IF('Timesheet raw data'!D49<>"",'Timesheet raw data'!D49&"-"&'Timesheet raw data'!F49,"") -> Tenant1 Incident Management-2011-10
B50: Project Manager1 | C50: 2011-10-11 | D50: Tenant1 Incident Management | E50: 2 | F50: 2011-10 | G50: 200 | H50: =IF('Timesheet raw data'!E50>0,'Timesheet raw data'!G50/'Timesheet raw data'!E50,"") -> 100 | I50: Project Manager | J50: ='Timesheet raw data'!D50&I50 -> Tenant1 Incident ManagementProject Manager | K50: =IF('Timesheet raw data'!D50<>"",'Timesheet raw data'!D50&"-"&'Timesheet raw data'!F50,"") -> Tenant1 Incident Management-2011-10
B51: Associate Consultant2 | C51: 2011-10-11 | D51: Tenant1 Incident Management | E51: 5 | F51: 2011-10 | G51: 375 | H51: =IF('Timesheet raw data'!E51>0,'Timesheet raw data'!G51/'Timesheet raw data'!E51,"") -> 75 | I51: Associate Consultant | J51: ='Timesheet raw data'!D51&I51 -> Tenant1 Incident ManagementAssociate Consultant | K51: =IF('Timesheet raw data'!D51<>"",'Timesheet raw data'!D51&"-"&'Timesheet raw data'!F51,"") -> Tenant1 Incident Management-2011-10
B52: Offshore Consultant2 | C52: 2011-10-11 | D52: Tenant1 Incident Management | E52: 4 | F52: 2011-10 | G52: 260 | H52: =IF('Timesheet raw data'!E52>0,'Timesheet raw data'!G52/'Timesheet raw data'!E52,"") -> 65 | I52: Offshore Consultant | J52: ='Timesheet raw data'!D52&I52 -> Tenant1 Incident ManagementOffshore Consultant | K52: =IF('Timesheet raw data'!D52<>"",'Timesheet raw data'!D52&"-"&'Timesheet raw data'!F52,"") -> Tenant1 Incident Management-2011-10
B53: Sr Consultant4 | C53: 2011-10-11 | D53: Tenant1 Incident Management | E53: 8 | F53: 2011-10 | G53: 720 | H53: =IF('Timesheet raw data'!E53>0,'Timesheet raw data'!G53/'Timesheet raw data'!E53,"") -> 90 | I53: Sr Consultant | J53: ='Timesheet raw data'!D53&I53 -> Tenant1 Incident ManagementSr Consultant | K53: =IF('Timesheet raw data'!D53<>"",'Timesheet raw data'!D53&"-"&'Timesheet raw data'!F53,"") -> Tenant1 Incident Management-2011-10
B54: Architect3 | C54: 2011-10-11 | D54: Tenant1 Incident Management | E54: 10 | F54: 2011-10 | G54: 960 | H54: =IF('Timesheet raw data'!E54>0,'Timesheet raw data'!G54/'Timesheet raw data'!E54,"") -> 96 | I54: Architect | J54: ='Timesheet raw data'!D54&I54 -> Tenant1 Incident ManagementArchitect | K54: =IF('Timesheet raw data'!D54<>"",'Timesheet raw data'!D54&"-"&'Timesheet raw data'!F54,"") -> Tenant1 Incident Management-2011-10
B55: Offshore Consultant1 | C55: 2011-10-12 | D55: Tenant1 Incident Management | E55: 2 | F55: 2011-10 | G55: 130 | H55: =IF('Timesheet raw data'!E55>0,'Timesheet raw data'!G55/'Timesheet raw data'!E55,"") -> 65 | I55: Offshore Consultant | J55: ='Timesheet raw data'!D55&I55 -> Tenant1 Incident ManagementOffshore Consultant | K55: =IF('Timesheet raw data'!D55<>"",'Timesheet raw data'!D55&"-"&'Timesheet raw data'!F55,"") -> Tenant1 Incident Management-2011-10
B56: Sr Consultant1 | C56: 2011-10-12 | D56: Tenant1 Incident Management | E56: 2 | F56: 2011-10 | G56: 180 | H56: =IF('Timesheet raw data'!E56>0,'Timesheet raw data'!G56/'Timesheet raw data'!E56,"") -> 90 | I56: Sr Consultant | J56: ='Timesheet raw data'!D56&I56 -> Tenant1 Incident ManagementSr Consultant | K56: =IF('Timesheet raw data'!D56<>"",'Timesheet raw data'!D56&"-"&'Timesheet raw data'!F56,"") -> Tenant1 Incident Management-2011-10
B57: Associate Consultant2 | C57: 2011-10-12 | D57: Tenant1 Incident Management | E57: 4.5 | F57: 2011-10 | G57: 337.5 | H57: =IF('Timesheet raw data'!E57>0,'Timesheet raw data'!G57/'Timesheet raw data'!E57,"") -> 75 | I57: Associate Consultant | J57: ='Timesheet raw data'!D57&I57 -> Tenant1 Incident ManagementAssociate Consultant | K57: =IF('Timesheet raw data'!D57<>"",'Timesheet raw data'!D57&"-"&'Timesheet raw data'!F57,"") -> Tenant1 Incident Management-2011-10
B58: Offshore Consultant2 | C58: 2011-10-12 | D58: Tenant1 Incident Management | E58: 4 | F58: 2011-10 | G58: 260 | H58: =IF('Timesheet raw data'!E58>0,'Timesheet raw data'!G58/'Timesheet raw data'!E58,"") -> 65 | I58: Offshore Consultant | J58: ='Timesheet raw data'!D58&I58 -> Tenant1 Incident ManagementOffshore Consultant | K58: =IF('Timesheet raw data'!D58<>"",'Timesheet raw data'!D58&"-"&'Timesheet raw data'!F58,"") -> Tenant1 Incident Management-2011-10
B59: Architect3 | C59: 2011-10-12 | D59: Tenant1 Incident Management | E59: 8 | F59: 2011-10 | G59: 768 | H59: =IF('Timesheet raw data'!E59>0,'Timesheet raw data'!G59/'Timesheet raw data'!E59,"") -> 96 | I59: Architect | J59: ='Timesheet raw data'!D59&I59 -> Tenant1 Incident ManagementArchitect | K59: =IF('Timesheet raw data'!D59<>"",'Timesheet raw data'!D59&"-"&'Timesheet raw data'!F59,"") -> Tenant1 Incident Management-2011-10
B60: Offshore Consultant1 | C60: 2011-10-13 | D60: Tenant1 Incident Management | E60: 2 | F60: 2011-10 | G60: 130 | H60: =IF('Timesheet raw data'!E60>0,'Timesheet raw data'!G60/'Timesheet raw data'!E60,"") -> 65 | I60: Offshore Consultant | J60: ='Timesheet raw data'!D60&I60 -> Tenant1 Incident ManagementOffshore Consultant | K60: =IF('Timesheet raw data'!D60<>"",'Timesheet raw data'!D60&"-"&'Timesheet raw data'!F60,"") -> Tenant1 Incident Management-2011-10
B61: Associate Consultant2 | C61: 2011-10-13 | D61: Tenant1 Incident Management | E61: 7.5 | F61: 2011-10 | G61: 562.5 | H61: =IF('Timesheet raw data'!E61>0,'Timesheet raw data'!G61/'Timesheet raw data'!E61,"") -> 75 | I61: Associate Consultant | J61: ='Timesheet raw data'!D61&I61 -> Tenant1 Incident ManagementAssociate Consultant | K61: =IF('Timesheet raw data'!D61<>"",'Timesheet raw data'!D61&"-"&'Timesheet raw data'!F61,"") -> Tenant1 Incident Management-2011-10
B62: Offshore Consultant2 | C62: 2011-10-13 | D62: Tenant1 Incident Management | E62: 4 | F62: 2011-10 | G62: 260 | H62: =IF('Timesheet raw data'!E62>0,'Timesheet raw data'!G62/'Timesheet raw data'!E62,"") -> 65 | I62: Offshore Consultant | J62: ='Timesheet raw data'!D62&I62 -> Tenant1 Incident ManagementOffshore Consultant | K62: =IF('Timesheet raw data'!D62<>"",'Timesheet raw data'!D62&"-"&'Timesheet raw data'!F62,"") -> Tenant1 Incident Management-2011-10
B63: Architect3 | C63: 2011-10-13 | D63: Tenant1 Incident Management | E63: 2 | F63: 2011-10 | G63: 192 | H63: =IF('Timesheet raw data'!E63>0,'Timesheet raw data'!G63/'Timesheet raw data'!E63,"") -> 96 | I63: Architect | J63: ='Timesheet raw data'!D63&I63 -> Tenant1 Incident ManagementArchitect | K63: =IF('Timesheet raw data'!D63<>"",'Timesheet raw data'!D63&"-"&'Timesheet raw data'!F63,"") -> Tenant1 Incident Management-2011-10
B64: Offshore Consultant1 | C64: 2011-10-14 | D64: Tenant1 Incident Management | E64: 2 | F64: 2011-10 | G64: 130 | H64: =IF('Timesheet raw data'!E64>0,'Timesheet raw data'!G64/'Timesheet raw data'!E64,"") -> 65 | I64: Offshore Consultant | J64: ='Timesheet raw data'!D64&I64 -> Tenant1 Incident ManagementOffshore Consultant | K64: =IF('Timesheet raw data'!D64<>"",'Timesheet raw data'!D64&"-"&'Timesheet raw data'!F64,"") -> Tenant1 Incident Management-2011-10
B65: Project Manager1 | C65: 2011-10-14 | D65: Tenant1 Incident Management | E65: 2 | F65: 2011-10 | G65: 200 | H65: =IF('Timesheet raw data'!E65>0,'Timesheet raw data'!G65/'Timesheet raw data'!E65,"") -> 100 | I65: Project Manager | J65: ='Timesheet raw data'!D65&I65 -> Tenant1 Incident ManagementProject Manager | K65: =IF('Timesheet raw data'!D65<>"",'Timesheet raw data'!D65&"-"&'Timesheet raw data'!F65,"") -> Tenant1 Incident Management-2011-10
B66: Associate Consultant2 | C66: 2011-10-14 | D66: Tenant1 Incident Management | E66: 3 | F66: =IF(C66<>"",TEXT(YEAR(C66),"0000")&"-"&TEXT(MONTH(C66),"00"),"") -> 2011-10 | G66: 225 | H66: =IF('Timesheet raw data'!E66>0,'Timesheet raw data'!G66/'Timesheet raw data'!E66,"") -> 75 | I66: Associate Consultant | J66: ='Timesheet raw data'!D66&I66 -> Tenant1 Incident ManagementAssociate Consultant | K66: =IF('Timesheet raw data'!D66<>"",'Timesheet raw data'!D66&"-"&'Timesheet raw data'!F66,"") -> Tenant1 Incident Management-2011-10
B67: Offshore Consultant2 | C67: 2011-10-14 | D67: Tenant1 Incident Management | E67: 4 | F67: 2011-10 | G67: 260 | H67: =IF('Timesheet raw data'!E67>0,'Timesheet raw data'!G67/'Timesheet raw data'!E67,"") -> 65 | I67: Offshore Consultant | J67: ='Timesheet raw data'!D67&I67 -> Tenant1 Incident ManagementOffshore Consultant | K67: =IF('Timesheet raw data'!D67<>"",'Timesheet raw data'!D67&"-"&'Timesheet raw data'!F67,"") -> Tenant1 Incident Management-2011-10
B68: Architect3 | C68: 2011-10-14 | D68: Tenant1 Incident Management | E68: 2 | F68: 2011-10 | G68: 192 | H68: =IF('Timesheet raw data'!E68>0,'Timesheet raw data'!G68/'Timesheet raw data'!E68,"") -> 96 | I68: Architect | J68: ='Timesheet raw data'!D68&I68 -> Tenant1 Incident ManagementArchitect | K68: =IF('Timesheet raw data'!D68<>"",'Timesheet raw data'!D68&"-"&'Timesheet raw data'!F68,"") -> Tenant1 Incident Management-2011-10
B69: Offshore Consultant1 | C69: 2011-10-17 | D69: Tenant1 Incident Management | E69: 2 | F69: 2011-10 | G69: 130 | H69: =IF('Timesheet raw data'!E69>0,'Timesheet raw data'!G69/'Timesheet raw data'!E69,"") -> 65 | I69: Offshore Consultant | J69: ='Timesheet raw data'!D69&I69 -> Tenant1 Incident ManagementOffshore Consultant | K69: =IF('Timesheet raw data'!D69<>"",'Timesheet raw data'!D69&"-"&'Timesheet raw data'!F69,"") -> Tenant1 Incident Management-2011-10
B70: Associate Consultant2 | C70: 2011-10-17 | D70: Tenant1 Incident Management | E70: 2 | F70: 2011-10 | G70: =VLOOKUP(B70,Program.ResourceTable,3,FALSE)*E70 -> 150 | H70: =IF('Timesheet raw data'!E70>0,'Timesheet raw data'!G70/'Timesheet raw data'!E70,"") -> 75 | I70: =IF(H70<>"",VLOOKUP(H70,Program.RateTable,2,FALSE),"") -> Associate Consultant | J70: ='Timesheet raw data'!D70&I70 -> Tenant1 Incident ManagementAssociate Consultant | K70: =IF('Timesheet raw data'!D70<>"",'Timesheet raw data'!D70&"-"&'Timesheet raw data'!F70,"") -> Tenant1 Incident Management-2011-10
B71: Offshore Consultant2 | C71: 2011-10-17 | D71: Tenant1 Incident Management | E71: 2 | F71: 2011-10 | G71: 130 | H71: =IF('Timesheet raw data'!E71>0,'Timesheet raw data'!G71/'Timesheet raw data'!E71,"") -> 65 | I71: Offshore Consultant | J71: ='Timesheet raw data'!D71&I71 -> Tenant1 Incident ManagementOffshore Consultant | K71: =IF('Timesheet raw data'!D71<>"",'Timesheet raw data'!D71&"-"&'Timesheet raw data'!F71,"") -> Tenant1 Incident Management-2011-10
B72: Sr Consultant4 | C72: 2011-10-17 | D72: Tenant1 Incident Management | E72: 8 | F72: 2011-10 | G72: 720 | H72: =IF('Timesheet raw data'!E72>0,'Timesheet raw data'!G72/'Timesheet raw data'!E72,"") -> 90 | I72: Sr Consultant | J72: ='Timesheet raw data'!D72&I72 -> Tenant1 Incident ManagementSr Consultant | K72: =IF('Timesheet raw data'!D72<>"",'Timesheet raw data'!D72&"-"&'Timesheet raw data'!F72,"") -> Tenant1 Incident Management-2011-10
B73: Architect3 | C73: 2011-10-17 | D73: Tenant1 Incident Management | E73: 3 | F73: 2011-10 | G73: 288 | H73: =IF('Timesheet raw data'!E73>0,'Timesheet raw data'!G73/'Timesheet raw data'!E73,"") -> 96 | I73: Architect | J73: ='Timesheet raw data'!D73&I73 -> Tenant1 Incident ManagementArchitect | K73: =IF('Timesheet raw data'!D73<>"",'Timesheet raw data'!D73&"-"&'Timesheet raw data'!F73,"") -> Tenant1 Incident Management-2011-10
B74: Offshore Consultant1 | C74: 2011-10-18 | D74: Tenant1 Incident Management | E74: 2 | F74: 2011-10 | G74: 130 | H74: =IF('Timesheet raw data'!E74>0,'Timesheet raw data'!G74/'Timesheet raw data'!E74,"") -> 65 | I74: Offshore Consultant | J74: ='Timesheet raw data'!D74&I74 -> Tenant1 Incident ManagementOffshore Consultant | K74: =IF('Timesheet raw data'!D74<>"",'Timesheet raw data'!D74&"-"&'Timesheet raw data'!F74,"") -> Tenant1 Incident Management-2011-10
B75: Associate Consultant2 | C75: 2011-10-18 | D75: Tenant1 Incident Management | E75: 2 | F75: 2011-10 | G75: 150 | H75: =IF('Timesheet raw data'!E75>0,'Timesheet raw data'!G75/'Timesheet raw data'!E75,"") -> 75 | I75: Associate Consultant | J75: ='Timesheet raw data'!D75&I75 -> Tenant1 Incident ManagementAssociate Consultant | K75: =IF('Timesheet raw data'!D75<>"",'Timesheet raw data'!D75&"-"&'Timesheet raw data'!F75,"") -> Tenant1 Incident Management-2011-10
B76: Offshore Consultant2 | C76: 2011-10-18 | D76: Tenant1 Incident Management | E76: 6 | F76: 2011-10 | G76: 390 | H76: =IF('Timesheet raw data'!E76>0,'Timesheet raw data'!G76/'Timesheet raw data'!E76,"") -> 65 | I76: Offshore Consultant | J76: ='Timesheet raw data'!D76&I76 -> Tenant1 Incident ManagementOffshore Consultant | K76: =IF('Timesheet raw data'!D76<>"",'Timesheet raw data'!D76&"-"&'Timesheet raw data'!F76,"") -> Tenant1 Incident Management-2011-10
B77: Sr Consultant4 | C77: 2011-10-18 | D77: Tenant1 Incident Management | E77: 8 | F77: 2011-10 | G77: 720 | H77: =IF('Timesheet raw data'!E77>0,'Timesheet raw data'!G77/'Timesheet raw data'!E77,"") -> 90 | I77: Sr Consultant | J77: ='Timesheet raw data'!D77&I77 -> Tenant1 Incident ManagementSr Consultant | K77: =IF('Timesheet raw data'!D77<>"",'Timesheet raw data'!D77&"-"&'Timesheet raw data'!F77,"") -> Tenant1 Incident Management-2011-10
B78: Architect3 | C78: 2011-10-18 | D78: Tenant1 Incident Management | E78: 3 | F78: 2011-10 | G78: 288 | H78: =IF('Timesheet raw data'!E78>0,'Timesheet raw data'!G78/'Timesheet raw data'!E78,"") -> 96 | I78: Architect | J78: ='Timesheet raw data'!D78&I78 -> Tenant1 Incident ManagementArchitect | K78: =IF('Timesheet raw data'!D78<>"",'Timesheet raw data'!D78&"-"&'Timesheet raw data'!F78,"") -> Tenant1 Incident Management-2011-10
B79: Offshore Consultant1 | C79: 2011-10-19 | D79: Tenant1 Incident Management | E79: 2 | F79: 2011-10 | G79: 130 | H79: =IF('Timesheet raw data'!E79>0,'Timesheet raw data'!G79/'Timesheet raw data'!E79,"") -> 65 | I79: Offshore Consultant | J79: ='Timesheet raw data'!D79&I79 -> Tenant1 Incident ManagementOffshore Consultant | K79: =IF('Timesheet raw data'!D79<>"",'Timesheet raw data'!D79&"-"&'Timesheet raw data'!F79,"") -> Tenant1 Incident Management-2011-10
B80: Project Manager1 | C80: 2011-10-19 | D80: Tenant1 Incident Management | E80: 1 | F80: 2011-10 | G80: 100 | H80: =IF('Timesheet raw data'!E80>0,'Timesheet raw data'!G80/'Timesheet raw data'!E80,"") -> 100 | I80: Project Manager | J80: ='Timesheet raw data'!D80&I80 -> Tenant1 Incident ManagementProject Manager | K80: =IF('Timesheet raw data'!D80<>"",'Timesheet raw data'!D80&"-"&'Timesheet raw data'!F80,"") -> Tenant1 Incident Management-2011-10
B81: Associate Consultant2 | C81: 2011-10-19 | D81: Tenant1 Incident Management | E81: 2 | F81: 2011-10 | G81: 150 | H81: =IF('Timesheet raw data'!E81>0,'Timesheet raw data'!G81/'Timesheet raw data'!E81,"") -> 75 | I81: Associate Consultant | J81: ='Timesheet raw data'!D81&I81 -> Tenant1 Incident ManagementAssociate Consultant | K81: =IF('Timesheet raw data'!D81<>"",'Timesheet raw data'!D81&"-"&'Timesheet raw data'!F81,"") -> Tenant1 Incident Management-2011-10
B82: Offshore Consultant2 | C82: 2011-10-19 | D82: Tenant1 Incident Management | E82: 2 | F82: 2011-10 | G82: 130 | H82: =IF('Timesheet raw data'!E82>0,'Timesheet raw data'!G82/'Timesheet raw data'!E82,"") -> 65 | I82: Offshore Consultant | J82: ='Timesheet raw data'!D82&I82 -> Tenant1 Incident ManagementOffshore Consultant | K82: =IF('Timesheet raw data'!D82<>"",'Timesheet raw data'!D82&"-"&'Timesheet raw data'!F82,"") -> Tenant1 Incident Management-2011-10
B83: Sr Consultant4 | C83: 2011-10-19 | D83: Tenant1 Incident Management | E83: 8 | F83: 2011-10 | G83: 720 | H83: =IF('Timesheet raw data'!E83>0,'Timesheet raw data'!G83/'Timesheet raw data'!E83,"") -> 90 | I83: Sr Consultant | J83: ='Timesheet raw data'!D83&I83 -> Tenant1 Incident ManagementSr Consultant | K83: =IF('Timesheet raw data'!D83<>"",'Timesheet raw data'!D83&"-"&'Timesheet raw data'!F83,"") -> Tenant1 Incident Management-2011-10
B84: Architect3 | C84: 2011-10-19 | D84: Tenant1 Incident Management | E84: 3.5 | F84: 2011-10 | G84: 336 | H84: =IF('Timesheet raw data'!E84>0,'Timesheet raw data'!G84/'Timesheet raw data'!E84,"") -> 96 | I84: Architect | J84: ='Timesheet raw data'!D84&I84 -> Tenant1 Incident ManagementArchitect | K84: =IF('Timesheet raw data'!D84<>"",'Timesheet raw data'!D84&"-"&'Timesheet raw data'!F84,"") -> Tenant1 Incident Management-2011-10
B85: Offshore Consultant1 | C85: 2011-10-20 | D85: Tenant1 Incident Management | E85: 2 | F85: 2011-10 | G85: 130 | H85: =IF('Timesheet raw data'!E85>0,'Timesheet raw data'!G85/'Timesheet raw data'!E85,"") -> 65 | I85: Offshore Consultant | J85: ='Timesheet raw data'!D85&I85 -> Tenant1 Incident ManagementOffshore Consultant | K85: =IF('Timesheet raw data'!D85<>"",'Timesheet raw data'!D85&"-"&'Timesheet raw data'!F85,"") -> Tenant1 Incident Management-2011-10
B86: Project Manager1 | C86: 2011-10-20 | D86: Tenant1 Incident Management | E86: 2 | F86: 2011-10 | G86: 200 | H86: =IF('Timesheet raw data'!E86>0,'Timesheet raw data'!G86/'Timesheet raw data'!E86,"") -> 100 | I86: Project Manager | J86: ='Timesheet raw data'!D86&I86 -> Tenant1 Incident ManagementProject Manager | K86: =IF('Timesheet raw data'!D86<>"",'Timesheet raw data'!D86&"-"&'Timesheet raw data'!F86,"") -> Tenant1 Incident Management-2011-10
B87: Offshore Consultant2 | C87: 2011-10-20 | D87: Tenant1 Incident Management | E87: 6 | F87: 2011-10 | G87: 390 | H87: =IF('Timesheet raw data'!E87>0,'Timesheet raw data'!G87/'Timesheet raw data'!E87,"") -> 65 | I87: Offshore Consultant | J87: ='Timesheet raw data'!D87&I87 -> Tenant1 Incident ManagementOffshore Consultant | K87: =IF('Timesheet raw data'!D87<>"",'Timesheet raw data'!D87&"-"&'Timesheet raw data'!F87,"") -> Tenant1 Incident Management-2011-10
B88: Sr Consultant4 | C88: 2011-10-20 | D88: Tenant1 Incident Management | E88: 8 | F88: 2011-10 | G88: 720 | H88: =IF('Timesheet raw data'!E88>0,'Timesheet raw data'!G88/'Timesheet raw data'!E88,"") -> 90 | I88: Sr Consultant | J88: ='Timesheet raw data'!D88&I88 -> Tenant1 Incident ManagementSr Consultant | K88: =IF('Timesheet raw data'!D88<>"",'Timesheet raw data'!D88&"-"&'Timesheet raw data'!F88,"") -> Tenant1 Incident Management-2011-10
B89: Architect3 | C89: 2011-10-20 | D89: Tenant1 Incident Management | E89: 1.5 | F89: 2011-10 | G89: 144 | H89: =IF('Timesheet raw data'!E89>0,'Timesheet raw data'!G89/'Timesheet raw data'!E89,"") -> 96 | I89: Architect | J89: ='Timesheet raw data'!D89&I89 -> Tenant1 Incident ManagementArchitect | K89: =IF('Timesheet raw data'!D89<>"",'Timesheet raw data'!D89&"-"&'Timesheet raw data'!F89,"") -> Tenant1 Incident Management-2011-10
B90: Offshore Consultant1 | C90: 2011-10-21 | D90: Tenant1 Incident Management | E90: 2 | F90: 2011-10 | G90: 130 | H90: =IF('Timesheet raw data'!E90>0,'Timesheet raw data'!G90/'Timesheet raw data'!E90,"") -> 65 | I90: Offshore Consultant | J90: ='Timesheet raw data'!D90&I90 -> Tenant1 Incident ManagementOffshore Consultant | K90: =IF('Timesheet raw data'!D90<>"",'Timesheet raw data'!D90&"-"&'Timesheet raw data'!F90,"") -> Tenant1 Incident Management-2011-10
B91: Project Manager1 | C91: 2011-10-21 | D91: Tenant1 Incident Management | E91: 2 | F91: 2011-10 | G91: 200 | H91: =IF('Timesheet raw data'!E91>0,'Timesheet raw data'!G91/'Timesheet raw data'!E91,"") -> 100 | I91: Project Manager | J91: ='Timesheet raw data'!D91&I91 -> Tenant1 Incident ManagementProject Manager | K91: =IF('Timesheet raw data'!D91<>"",'Timesheet raw data'!D91&"-"&'Timesheet raw data'!F91,"") -> Tenant1 Incident Management-2011-10
B92: Offshore Consultant2 | C92: 2011-10-21 | D92: Tenant1 Incident Management | E92: 2 | F92: 2011-10 | G92: 130 | H92: =IF('Timesheet raw data'!E92>0,'Timesheet raw data'!G92/'Timesheet raw data'!E92,"") -> 65 | I92: Offshore Consultant | J92: ='Timesheet raw data'!D92&I92 -> Tenant1 Incident ManagementOffshore Consultant | K92: =IF('Timesheet raw data'!D92<>"",'Timesheet raw data'!D92&"-"&'Timesheet raw data'!F92,"") -> Tenant1 Incident Management-2011-10
B93: Sr Consultant4 | C93: 2011-10-21 | D93: Tenant1 Incident Management | E93: 8 | F93: 2011-10 | G93: 720 | H93: =IF('Timesheet raw data'!E93>0,'Timesheet raw data'!G93/'Timesheet raw data'!E93,"") -> 90 | I93: Sr Consultant | J93: ='Timesheet raw data'!D93&I93 -> Tenant1 Incident ManagementSr Consultant | K93: =IF('Timesheet raw data'!D93<>"",'Timesheet raw data'!D93&"-"&'Timesheet raw data'!F93,"") -> Tenant1 Incident Management-2011-10
B94: Architect3 | C94: 2011-10-21 | D94: Tenant1 Incident Management | E94: 6 | F94: 2011-10 | G94: 576 | H94: =IF('Timesheet raw data'!E94>0,'Timesheet raw data'!G94/'Timesheet raw data'!E94,"") -> 96 | I94: Architect | J94: ='Timesheet raw data'!D94&I94 -> Tenant1 Incident ManagementArchitect | K94: =IF('Timesheet raw data'!D94<>"",'Timesheet raw data'!D94&"-"&'Timesheet raw data'!F94,"") -> Tenant1 Incident Management-2011-10
B95: Project Manager1 | C95: 2011-10-22 | D95: Tenant1 Incident Management | E95: 3 | F95: 2011-10 | G95: 300 | H95: =IF('Timesheet raw data'!E95>0,'Timesheet raw data'!G95/'Timesheet raw data'!E95,"") -> 100 | I95: Project Manager | J95: ='Timesheet raw data'!D95&I95 -> Tenant1 Incident ManagementProject Manager | K95: =IF('Timesheet raw data'!D95<>"",'Timesheet raw data'!D95&"-"&'Timesheet raw data'!F95,"") -> Tenant1 Incident Management-2011-10
B96: Offshore Consultant2 | C96: 2011-10-24 | D96: Tenant1 Incident Management | E96: 4 | F96: 2011-10 | G96: 260 | H96: =IF('Timesheet raw data'!E96>0,'Timesheet raw data'!G96/'Timesheet raw data'!E96,"") -> 65 | I96: Offshore Consultant | J96: ='Timesheet raw data'!D96&I96 -> Tenant1 Incident ManagementOffshore Consultant | K96: =IF('Timesheet raw data'!D96<>"",'Timesheet raw data'!D96&"-"&'Timesheet raw data'!F96,"") -> Tenant1 Incident Management-2011-10
B97: Sr Consultant4 | C97: 2011-10-24 | D97: Tenant1 Incident Management | E97: 8 | F97: 2011-10 | G97: 720 | H97: =IF('Timesheet raw data'!E97>0,'Timesheet raw data'!G97/'Timesheet raw data'!E97,"") -> 90 | I97: Sr Consultant | J97: ='Timesheet raw data'!D97&I97 -> Tenant1 Incident ManagementSr Consultant | K97: =IF('Timesheet raw data'!D97<>"",'Timesheet raw data'!D97&"-"&'Timesheet raw data'!F97,"") -> Tenant1 Incident Management-2011-10
B98: Architect3 | C98: 2011-10-24 | D98: Tenant1 Incident Management | E98: 2.5 | F98: 2011-10 | G98: 240 | H98: =IF('Timesheet raw data'!E98>0,'Timesheet raw data'!G98/'Timesheet raw data'!E98,"") -> 96 | I98: Architect | J98: ='Timesheet raw data'!D98&I98 -> Tenant1 Incident ManagementArchitect | K98: =IF('Timesheet raw data'!D98<>"",'Timesheet raw data'!D98&"-"&'Timesheet raw data'!F98,"") -> Tenant1 Incident Management-2011-10
B99: Associate Consultant2 | C99: 2011-10-25 | D99: Tenant1 Incident Management | E99: 2.5 | F99: 2011-10 | G99: 187.5 | H99: =IF('Timesheet raw data'!E99>0,'Timesheet raw data'!G99/'Timesheet raw data'!E99,"") -> 75 | I99: Associate Consultant | J99: ='Timesheet raw data'!D99&I99 -> Tenant1 Incident ManagementAssociate Consultant | K99: =IF('Timesheet raw data'!D99<>"",'Timesheet raw data'!D99&"-"&'Timesheet raw data'!F99,"") -> Tenant1 Incident Management-2011-10
B100: Offshore Consultant2 | C100: 2011-10-25 | D100: Tenant1 Incident Management | E100: 4 | F100: 2011-10 | G100: 260 | H100: =IF('Timesheet raw data'!E100>0,'Timesheet raw data'!G100/'Timesheet raw data'!E100,"") -> 65 | I100: Offshore Consultant | J100: ='Timesheet raw data'!D100&I100 -> Tenant1 Incident ManagementOffshore Consultant | K100: =IF('Timesheet raw data'!D100<>"",'Timesheet raw data'!D100&"-"&'Timesheet raw data'!F100,"") -> Tenant1 Incident Management-2011-10
B101: Sr Consultant4 | C101: 2011-10-25 | D101: Tenant1 Incident Management | E101: 8 | F101: 2011-10 | G101: 720 | H101: =IF('Timesheet raw data'!E101>0,'Timesheet raw data'!G101/'Timesheet raw data'!E101,"") -> 90 | I101: Sr Consultant | J101: ='Timesheet raw data'!D101&I101 -> Tenant1 Incident ManagementSr Consultant | K101: =IF('Timesheet raw data'!D101<>"",'Timesheet raw data'!D101&"-"&'Timesheet raw data'!F101,"") -> Tenant1 Incident Management-2011-10
B102: Architect3 | C102: 2011-10-25 | D102: Tenant1 Incident Management | E102: 1.5 | F102: 2011-10 | G102: 144 | H102: =IF('Timesheet raw data'!E102>0,'Timesheet raw data'!G102/'Timesheet raw data'!E102,"") -> 96 | I102: Architect | J102: ='Timesheet raw data'!D102&I102 -> Tenant1 Incident ManagementArchitect | K102: =IF('Timesheet raw data'!D102<>"",'Timesheet raw data'!D102&"-"&'Timesheet raw data'!F102,"") -> Tenant1 Incident Management-2011-10
B103: Associate Consultant2 | C103: 2011-10-26 | D103: Tenant1 Incident Management | E103: 2.5 | F103: 2011-10 | G103: 187.5 | H103: =IF('Timesheet raw data'!E103>0,'Timesheet raw data'!G103/'Timesheet raw data'!E103,"") -> 75 | I103: Associate Consultant | J103: ='Timesheet raw data'!D103&I103 -> Tenant1 Incident ManagementAssociate Consultant | K103: =IF('Timesheet raw data'!D103<>"",'Timesheet raw data'!D103&"-"&'Timesheet raw data'!F103,"") -> Tenant1 Incident Management-2011-10
B104: Sr Consultant4 | C104: 2011-10-26 | D104: Tenant1 Incident Management | E104: 8 | F104: 2011-10 | G104: 720 | H104: =IF('Timesheet raw data'!E104>0,'Timesheet raw data'!G104/'Timesheet raw data'!E104,"") -> 90 | I104: Sr Consultant | J104: ='Timesheet raw data'!D104&I104 -> Tenant1 Incident ManagementSr Consultant | K104: =IF('Timesheet raw data'!D104<>"",'Timesheet raw data'!D104&"-"&'Timesheet raw data'!F104,"") -> Tenant1 Incident Management-2011-10
B105: Sr Consultant4 | C105: 2011-10-27 | D105: Tenant1 Incident Management | E105: 8 | F105: 2011-10 | G105: 720 | H105: =IF('Timesheet raw data'!E105>0,'Timesheet raw data'!G105/'Timesheet raw data'!E105,"") -> 90 | I105: Sr Consultant | J105: ='Timesheet raw data'!D105&I105 -> Tenant1 Incident ManagementSr Consultant | K105: =IF('Timesheet raw data'!D105<>"",'Timesheet raw data'!D105&"-"&'Timesheet raw data'!F105,"") -> Tenant1 Incident Management-2011-10
B106: Architect3 | C106: 2011-10-27 | D106: Tenant1 Incident Management | E106: 1 | F106: 2011-10 | G106: 96 | H106: =IF('Timesheet raw data'!E106>0,'Timesheet raw data'!G106/'Timesheet raw data'!E106,"") -> 96 | I106: Architect | J106: ='Timesheet raw data'!D106&I106 -> Tenant1 Incident ManagementArchitect | K106: =IF('Timesheet raw data'!D106<>"",'Timesheet raw data'!D106&"-"&'Timesheet raw data'!F106,"") -> Tenant1 Incident Management-2011-10
B107: Project Manager1 | C107: 2011-10-28 | D107: Tenant1 Incident Management | E107: 1 | F107: 2011-10 | G107: 100 | H107: =IF('Timesheet raw data'!E107>0,'Timesheet raw data'!G107/'Timesheet raw data'!E107,"") -> 100 | I107: Project Manager | J107: ='Timesheet raw data'!D107&I107 -> Tenant1 Incident ManagementProject Manager | K107: =IF('Timesheet raw data'!D107<>"",'Timesheet raw data'!D107&"-"&'Timesheet raw data'!F107,"") -> Tenant1 Incident Management-2011-10
B108: Associate Consultant2 | C108: 2011-10-28 | D108: Tenant1 Incident Management | E108: 2 | F108: 2011-10 | G108: 150 | H108: =IF('Timesheet raw data'!E108>0,'Timesheet raw data'!G108/'Timesheet raw data'!E108,"") -> 75 | I108: Associate Consultant | J108: ='Timesheet raw data'!D108&I108 -> Tenant1 Incident ManagementAssociate Consultant | K108: =IF('Timesheet raw data'!D108<>"",'Timesheet raw data'!D108&"-"&'Timesheet raw data'!F108,"") -> Tenant1 Incident Management-2011-10
B109: Sr Consultant4 | C109: 2011-10-28 | D109: Tenant1 Incident Management | E109: 4 | F109: 2011-10 | G109: 360 | H109: =IF('Timesheet raw data'!E109>0,'Timesheet raw data'!G109/'Timesheet raw data'!E109,"") -> 90 | I109: Sr Consultant | J109: ='Timesheet raw data'!D109&I109 -> Tenant1 Incident ManagementSr Consultant | K109: =IF('Timesheet raw data'!D109<>"",'Timesheet raw data'!D109&"-"&'Timesheet raw data'!F109,"") -> Tenant1 Incident Management-2011-10
B110: Architect3 | C110: 2011-10-28 | D110: Tenant1 Incident Management | E110: 3 | F110: 2011-10 | G110: 288 | H110: =IF('Timesheet raw data'!E110>0,'Timesheet raw data'!G110/'Timesheet raw data'!E110,"") -> 96 | I110: Architect | J110: ='Timesheet raw data'!D110&I110 -> Tenant1 Incident ManagementArchitect | K110: =IF('Timesheet raw data'!D110<>"",'Timesheet raw data'!D110&"-"&'Timesheet raw data'!F110,"") -> Tenant1 Incident Management-2011-10
B111: Offshore Consultant1 | C111: 2011-10-31 | D111: Tenant1 Incident Management | E111: 4 | F111: 2011-10 | G111: 260 | H111: =IF('Timesheet raw data'!E111>0,'Timesheet raw data'!G111/'Timesheet raw data'!E111,"") -> 65 | I111: Offshore Consultant | J111: ='Timesheet raw data'!D111&I111 -> Tenant1 Incident ManagementOffshore Consultant | K111: =IF('Timesheet raw data'!D111<>"",'Timesheet raw data'!D111&"-"&'Timesheet raw data'!F111,"") -> Tenant1 Incident Management-2011-10
B112: Architect3 | C112: 2011-10-31 | D112: Tenant1 Incident Management | E112: 1 | F112: 2011-10 | G112: 96 | H112: =IF('Timesheet raw data'!E112>0,'Timesheet raw data'!G112/'Timesheet raw data'!E112,"") -> 96 | I112: Architect | J112: ='Timesheet raw data'!D112&I112 -> Tenant1 Incident ManagementArchitect | K112: =IF('Timesheet raw data'!D112<>"",'Timesheet raw data'!D112&"-"&'Timesheet raw data'!F112,"") -> Tenant1 Incident Management-2011-10
B113: Offshore Consultant1 | C113: 2011-11-02 | D113: Tenant1 Incident Management | E113: 4 | F113: 2011-11 | G113: 260 | H113: =IF('Timesheet raw data'!E113>0,'Timesheet raw data'!G113/'Timesheet raw data'!E113,"") -> 65 | I113: Offshore Consultant | J113: ='Timesheet raw data'!D113&I113 -> Tenant1 Incident ManagementOffshore Consultant | K113: =IF('Timesheet raw data'!D113<>"",'Timesheet raw data'!D113&"-"&'Timesheet raw data'!F113,"") -> Tenant1 Incident Management-2011-11
B114: Offshore Consultant2 | C114: 2011-11-02 | D114: Tenant1 Incident Management | E114: 4 | F114: 2011-11 | G114: 260 | H114: =IF('Timesheet raw data'!E114>0,'Timesheet raw data'!G114/'Timesheet raw data'!E114,"") -> 65 | I114: Offshore Consultant | J114: ='Timesheet raw data'!D114&I114 -> Tenant1 Incident ManagementOffshore Consultant | K114: =IF('Timesheet raw data'!D114<>"",'Timesheet raw data'!D114&"-"&'Timesheet raw data'!F114,"") -> Tenant1 Incident Management-2011-11
B115: Architect3 | C115: 2011-11-02 | D115: Tenant1 Incident Management | E115: 6 | F115: 2011-11 | G115: 576 | H115: =IF('Timesheet raw data'!E115>0,'Timesheet raw data'!G115/'Timesheet raw data'!E115,"") -> 96 | I115: Architect | J115: ='Timesheet raw data'!D115&I115 -> Tenant1 Incident ManagementArchitect | K115: =IF('Timesheet raw data'!D115<>"",'Timesheet raw data'!D115&"-"&'Timesheet raw data'!F115,"") -> Tenant1 Incident Management-2011-11
B116: Project Manager1 | C116: 2011-11-02 | D116: Tenant2 Incident Management | E116: 5 | F116: 2011-11 | G116: 500 | H116: =IF('Timesheet raw data'!E116>0,'Timesheet raw data'!G116/'Timesheet raw data'!E116,"") -> 100 | I116: Project Manager | J116: ='Timesheet raw data'!D116&I116 -> Tenant2 Incident ManagementProject Manager | K116: =IF('Timesheet raw data'!D116<>"",'Timesheet raw data'!D116&"-"&'Timesheet raw data'!F116,"") -> Tenant2 Incident Management-2011-11
B117: Architect2 | C117: 2011-11-02 | D117: Tenant2 Incident Management | E117: 2 | F117: 2011-11 | G117: 192 | H117: =IF('Timesheet raw data'!E117>0,'Timesheet raw data'!G117/'Timesheet raw data'!E117,"") -> 96 | I117: Architect | J117: ='Timesheet raw data'!D117&I117 -> Tenant2 Incident ManagementArchitect | K117: =IF('Timesheet raw data'!D117<>"",'Timesheet raw data'!D117&"-"&'Timesheet raw data'!F117,"") -> Tenant2 Incident Management-2011-11
B118: Offshore Consultant1 | C118: 2011-11-03 | D118: Tenant1 Incident Management | E118: 4 | F118: 2011-11 | G118: 260 | H118: =IF('Timesheet raw data'!E118>0,'Timesheet raw data'!G118/'Timesheet raw data'!E118,"") -> 65 | I118: Offshore Consultant | J118: ='Timesheet raw data'!D118&I118 -> Tenant1 Incident ManagementOffshore Consultant | K118: =IF('Timesheet raw data'!D118<>"",'Timesheet raw data'!D118&"-"&'Timesheet raw data'!F118,"") -> Tenant1 Incident Management-2011-11
B119: Offshore Consultant2 | C119: 2011-11-03 | D119: Tenant1 Incident Management | E119: 4 | F119: 2011-11 | G119: 260 | H119: =IF('Timesheet raw data'!E119>0,'Timesheet raw data'!G119/'Timesheet raw data'!E119,"") -> 65 | I119: Offshore Consultant | J119: ='Timesheet raw data'!D119&I119 -> Tenant1 Incident ManagementOffshore Consultant | K119: =IF('Timesheet raw data'!D119<>"",'Timesheet raw data'!D119&"-"&'Timesheet raw data'!F119,"") -> Tenant1 Incident Management-2011-11
B120: Architect3 | C120: 2011-11-03 | D120: Tenant1 Incident Management | E120: 1 | F120: 2011-11 | G120: 96 | H120: =IF('Timesheet raw data'!E120>0,'Timesheet raw data'!G120/'Timesheet raw data'!E120,"") -> 96 | I120: Architect | J120: ='Timesheet raw data'!D120&I120 -> Tenant1 Incident ManagementArchitect | K120: =IF('Timesheet raw data'!D120<>"",'Timesheet raw data'!D120&"-"&'Timesheet raw data'!F120,"") -> Tenant1 Incident Management-2011-11
B121: Sr Consultant1 | C121: 2011-11-03 | D121: Tenant2 Incident Management | E121: 4 | F121: 2011-11 | G121: 360 | H121: =IF('Timesheet raw data'!E121>0,'Timesheet raw data'!G121/'Timesheet raw data'!E121,"") -> 90 | I121: Sr Consultant | J121: ='Timesheet raw data'!D121&I121 -> Tenant2 Incident ManagementSr Consultant | K121: =IF('Timesheet raw data'!D121<>"",'Timesheet raw data'!D121&"-"&'Timesheet raw data'!F121,"") -> Tenant2 Incident Management-2011-11
B122: Project Manager1 | C122: 2011-11-03 | D122: Tenant2 Incident Management | E122: 1 | F122: 2011-11 | G122: 100 | H122: =IF('Timesheet raw data'!E122>0,'Timesheet raw data'!G122/'Timesheet raw data'!E122,"") -> 100 | I122: Project Manager | J122: ='Timesheet raw data'!D122&I122 -> Tenant2 Incident ManagementProject Manager | K122: =IF('Timesheet raw data'!D122<>"",'Timesheet raw data'!D122&"-"&'Timesheet raw data'!F122,"") -> Tenant2 Incident Management-2011-11
B123: Architect2 | C123: 2011-11-03 | D123: Tenant2 Incident Management | E123: 4 | F123: =IF(C123<>"",TEXT(YEAR(C123),"0000")&"-"&TEXT(MONTH(C123),"00"),"") -> 2011-11 | G123: 384 | H123: =IF('Timesheet raw data'!E123>0,'Timesheet raw data'!G123/'Timesheet raw data'!E123,"") -> 96 | I123: Architect | J123: ='Timesheet raw data'!D123&I123 -> Tenant2 Incident ManagementArchitect | K123: =IF('Timesheet raw data'!D123<>"",'Timesheet raw data'!D123&"-"&'Timesheet raw data'!F123,"") -> Tenant2 Incident Management-2011-11
B124: Architect3 | C124: 2011-11-03 | D124: Tenant2 Incident Management | E124: 4.5 | F124: 2011-11 | G124: 432 | H124: =IF('Timesheet raw data'!E124>0,'Timesheet raw data'!G124/'Timesheet raw data'!E124,"") -> 96 | I124: Architect | J124: ='Timesheet raw data'!D124&I124 -> Tenant2 Incident ManagementArchitect | K124: =IF('Timesheet raw data'!D124<>"",'Timesheet raw data'!D124&"-"&'Timesheet raw data'!F124,"") -> Tenant2 Incident Management-2011-11
B125: Offshore Consultant1 | C125: 2011-11-04 | D125: Tenant1 Incident Management | E125: 4 | F125: 2011-11 | G125: 260 | H125: =IF('Timesheet raw data'!E125>0,'Timesheet raw data'!G125/'Timesheet raw data'!E125,"") -> 65 | I125: Offshore Consultant | J125: ='Timesheet raw data'!D125&I125 -> Tenant1 Incident ManagementOffshore Consultant | K125: =IF('Timesheet raw data'!D125<>"",'Timesheet raw data'!D125&"-"&'Timesheet raw data'!F125,"") -> Tenant1 Incident Management-2011-11
B126: Project Manager1 | C126: 2011-11-04 | D126: Tenant1 Incident Management | E126: 3 | F126: 2011-11 | G126: 300 | H126: =IF('Timesheet raw data'!E126>0,'Timesheet raw data'!G126/'Timesheet raw data'!E126,"") -> 100 | I126: Project Manager | J126: ='Timesheet raw data'!D126&I126 -> Tenant1 Incident ManagementProject Manager | K126: =IF('Timesheet raw data'!D126<>"",'Timesheet raw data'!D126&"-"&'Timesheet raw data'!F126,"") -> Tenant1 Incident Management-2011-11
B127: Offshore Consultant2 | C127: 2011-11-04 | D127: Tenant1 Incident Management | E127: 4 | F127: 2011-11 | G127: 260 | H127: =IF('Timesheet raw data'!E127>0,'Timesheet raw data'!G127/'Timesheet raw data'!E127,"") -> 65 | I127: Offshore Consultant | J127: ='Timesheet raw data'!D127&I127 -> Tenant1 Incident ManagementOffshore Consultant | K127: =IF('Timesheet raw data'!D127<>"",'Timesheet raw data'!D127&"-"&'Timesheet raw data'!F127,"") -> Tenant1 Incident Management-2011-11
B128: Architect3 | C128: 2011-11-04 | D128: Tenant1 Incident Management | E128: 1.5 | F128: 2011-11 | G128: 144 | H128: =IF('Timesheet raw data'!E128>0,'Timesheet raw data'!G128/'Timesheet raw data'!E128,"") -> 96 | I128: Architect | J128: ='Timesheet raw data'!D128&I128 -> Tenant1 Incident ManagementArchitect | K128: =IF('Timesheet raw data'!D128<>"",'Timesheet raw data'!D128&"-"&'Timesheet raw data'!F128,"") -> Tenant1 Incident Management-2011-11
B129: Project Manager1 | C129: 2011-11-04 | D129: Tenant2 Incident Management | E129: 3 | F129: 2011-11 | G129: 300 | H129: =IF('Timesheet raw data'!E129>0,'Timesheet raw data'!G129/'Timesheet raw data'!E129,"") -> 100 | I129: Project Manager | J129: ='Timesheet raw data'!D129&I129 -> Tenant2 Incident ManagementProject Manager | K129: =IF('Timesheet raw data'!D129<>"",'Timesheet raw data'!D129&"-"&'Timesheet raw data'!F129,"") -> Tenant2 Incident Management-2011-11
B130: Architect2 | C130: 2011-11-04 | D130: Tenant2 Incident Management | E130: 4 | F130: 2011-11 | G130: 384 | H130: =IF('Timesheet raw data'!E130>0,'Timesheet raw data'!G130/'Timesheet raw data'!E130,"") -> 96 | I130: Architect | J130: ='Timesheet raw data'!D130&I130 -> Tenant2 Incident ManagementArchitect | K130: =IF('Timesheet raw data'!D130<>"",'Timesheet raw data'!D130&"-"&'Timesheet raw data'!F130,"") -> Tenant2 Incident Management-2011-11
B131: Architect3 | C131: 2011-11-04 | D131: Tenant2 Incident Management | E131: 4.5 | F131: 2011-11 | G131: 432 | H131: =IF('Timesheet raw data'!E131>0,'Timesheet raw data'!G131/'Timesheet raw data'!E131,"") -> 96 | I131: Architect | J131: ='Timesheet raw data'!D131&I131 -> Tenant2 Incident ManagementArchitect | K131: =IF('Timesheet raw data'!D131<>"",'Timesheet raw data'!D131&"-"&'Timesheet raw data'!F131,"") -> Tenant2 Incident Management-2011-11
B132: Offshore Consultant1 | C132: 2011-11-07 | D132: Tenant1 Incident Management | E132: 4 | F132: 2011-11 | G132: 260 | H132: =IF('Timesheet raw data'!E132>0,'Timesheet raw data'!G132/'Timesheet raw data'!E132,"") -> 65 | I132: Offshore Consultant | J132: ='Timesheet raw data'!D132&I132 -> Tenant1 Incident ManagementOffshore Consultant | K132: =IF('Timesheet raw data'!D132<>"",'Timesheet raw data'!D132&"-"&'Timesheet raw data'!F132,"") -> Tenant1 Incident Management-2011-11
B133: Offshore Consultant2 | C133: 2011-11-07 | D133: Tenant1 Incident Management | E133: 4 | F133: 2011-11 | G133: 260 | H133: =IF('Timesheet raw data'!E133>0,'Timesheet raw data'!G133/'Timesheet raw data'!E133,"") -> 65 | I133: Offshore Consultant | J133: ='Timesheet raw data'!D133&I133 -> Tenant1 Incident ManagementOffshore Consultant | K133: =IF('Timesheet raw data'!D133<>"",'Timesheet raw data'!D133&"-"&'Timesheet raw data'!F133,"") -> Tenant1 Incident Management-2011-11
B134: Sr Consultant4 | C134: 2011-11-07 | D134: Tenant1 Incident Management | E134: 8 | F134: 2011-11 | G134: =VLOOKUP(B134,Program.ResourceTable,3,FALSE)*E134 -> 720 | H134: =IF('Timesheet raw data'!E134>0,'Timesheet raw data'!G134/'Timesheet raw data'!E134,"") -> 90 | I134: =IF(H134<>"",VLOOKUP(H134,Program.RateTable,2,FALSE),"") -> Sr Consultant | J134: ='Timesheet raw data'!D134&I134 -> Tenant1 Incident ManagementSr Consultant | K134: =IF('Timesheet raw data'!D134<>"",'Timesheet raw data'!D134&"-"&'Timesheet raw data'!F134,"") -> Tenant1 Incident Management-2011-11
B135: Architect3 | C135: 2011-11-07 | D135: Tenant1 Incident Management | E135: 2 | F135: 2011-11 | G135: 192 | H135: =IF('Timesheet raw data'!E135>0,'Timesheet raw data'!G135/'Timesheet raw data'!E135,"") -> 96 | I135: Architect | J135: ='Timesheet raw data'!D135&I135 -> Tenant1 Incident ManagementArchitect | K135: =IF('Timesheet raw data'!D135<>"",'Timesheet raw data'!D135&"-"&'Timesheet raw data'!F135,"") -> Tenant1 Incident Management-2011-11
B136: Architect2 | C136: 2011-11-07 | D136: Tenant2 Incident Management | E136: 3 | F136: 2011-11 | G136: 288 | H136: =IF('Timesheet raw data'!E136>0,'Timesheet raw data'!G136/'Timesheet raw data'!E136,"") -> 96 | I136: Architect | J136: ='Timesheet raw data'!D136&I136 -> Tenant2 Incident ManagementArchitect | K136: =IF('Timesheet raw data'!D136<>"",'Timesheet raw data'!D136&"-"&'Timesheet raw data'!F136,"") -> Tenant2 Incident Management-2011-11
B137: Architect3 | C137: 2011-11-07 | D137: Tenant2 Incident Management | E137: 4.5 | F137: 2011-11 | G137: 432 | H137: =IF('Timesheet raw data'!E137>0,'Timesheet raw data'!G137/'Timesheet raw data'!E137,"") -> 96 | I137: Architect | J137: ='Timesheet raw data'!D137&I137 -> Tenant2 Incident ManagementArchitect | K137: =IF('Timesheet raw data'!D137<>"",'Timesheet raw data'!D137&"-"&'Timesheet raw data'!F137,"") -> Tenant2 Incident Management-2011-11
B138: Offshore Consultant1 | C138: 2011-11-08 | D138: Tenant1 Incident Management | E138: 4 | F138: 2011-11 | G138: 260 | H138: =IF('Timesheet raw data'!E138>0,'Timesheet raw data'!G138/'Timesheet raw data'!E138,"") -> 65 | I138: Offshore Consultant | J138: ='Timesheet raw data'!D138&I138 -> Tenant1 Incident ManagementOffshore Consultant | K138: =IF('Timesheet raw data'!D138<>"",'Timesheet raw data'!D138&"-"&'Timesheet raw data'!F138,"") -> Tenant1 Incident Management-2011-11
B139: Offshore Consultant2 | C139: 2011-11-08 | D139: Tenant1 Incident Management | E139: 4 | F139: 2011-11 | G139: 260 | H139: =IF('Timesheet raw data'!E139>0,'Timesheet raw data'!G139/'Timesheet raw data'!E139,"") -> 65 | I139: Offshore Consultant | J139: ='Timesheet raw data'!D139&I139 -> Tenant1 Incident ManagementOffshore Consultant | K139: =IF('Timesheet raw data'!D139<>"",'Timesheet raw data'!D139&"-"&'Timesheet raw data'!F139,"") -> Tenant1 Incident Management-2011-11
B140: Sr Consultant4 | C140: 2011-11-08 | D140: Tenant1 Incident Management | E140: 8 | F140: 2011-11 | G140: 720 | H140: =IF('Timesheet raw data'!E140>0,'Timesheet raw data'!G140/'Timesheet raw data'!E140,"") -> 90 | I140: Sr Consultant | J140: ='Timesheet raw data'!D140&I140 -> Tenant1 Incident ManagementSr Consultant | K140: =IF('Timesheet raw data'!D140<>"",'Timesheet raw data'!D140&"-"&'Timesheet raw data'!F140,"") -> Tenant1 Incident Management-2011-11
B141: Architect3 | C141: 2011-11-08 | D141: Tenant1 Incident Management | E141: 3.5 | F141: 2011-11 | G141: 336 | H141: =IF('Timesheet raw data'!E141>0,'Timesheet raw data'!G141/'Timesheet raw data'!E141,"") -> 96 | I141: Architect | J141: ='Timesheet raw data'!D141&I141 -> Tenant1 Incident ManagementArchitect | K141: =IF('Timesheet raw data'!D141<>"",'Timesheet raw data'!D141&"-"&'Timesheet raw data'!F141,"") -> Tenant1 Incident Management-2011-11
B142: Sr Consultant1 | C142: 2011-11-08 | D142: Tenant2 Incident Management | E142: 4 | F142: 2011-11 | G142: 360 | H142: =IF('Timesheet raw data'!E142>0,'Timesheet raw data'!G142/'Timesheet raw data'!E142,"") -> 90 | I142: Sr Consultant | J142: ='Timesheet raw data'!D142&I142 -> Tenant2 Incident ManagementSr Consultant | K142: =IF('Timesheet raw data'!D142<>"",'Timesheet raw data'!D142&"-"&'Timesheet raw data'!F142,"") -> Tenant2 Incident Management-2011-11
B143: Architect2 | C143: 2011-11-08 | D143: Tenant2 Incident Management | E143: 1 | F143: 2011-11 | G143: 96 | H143: =IF('Timesheet raw data'!E143>0,'Timesheet raw data'!G143/'Timesheet raw data'!E143,"") -> 96 | I143: Architect | J143: ='Timesheet raw data'!D143&I143 -> Tenant2 Incident ManagementArchitect | K143: =IF('Timesheet raw data'!D143<>"",'Timesheet raw data'!D143&"-"&'Timesheet raw data'!F143,"") -> Tenant2 Incident Management-2011-11
B144: Architect2 | C144: 2011-11-08 | D144: Tenant2 Incident Management | E144: 3 | F144: 2011-11 | G144: 288 | H144: =IF('Timesheet raw data'!E144>0,'Timesheet raw data'!G144/'Timesheet raw data'!E144,"") -> 96 | I144: Architect | J144: ='Timesheet raw data'!D144&I144 -> Tenant2 Incident ManagementArchitect | K144: =IF('Timesheet raw data'!D144<>"",'Timesheet raw data'!D144&"-"&'Timesheet raw data'!F144,"") -> Tenant2 Incident Management-2011-11
B145: Architect3 | C145: 2011-11-08 | D145: Tenant2 Incident Management | E145: 4.5 | F145: 2011-11 | G145: 432 | H145: =IF('Timesheet raw data'!E145>0,'Timesheet raw data'!G145/'Timesheet raw data'!E145,"") -> 96 | I145: Architect | J145: ='Timesheet raw data'!D145&I145 -> Tenant2 Incident ManagementArchitect | K145: =IF('Timesheet raw data'!D145<>"",'Timesheet raw data'!D145&"-"&'Timesheet raw data'!F145,"") -> Tenant2 Incident Management-2011-11
B146: Offshore Consultant1 | C146: 2011-11-09 | D146: Tenant1 Incident Management | E146: 4 | F146: 2011-11 | G146: 260 | H146: =IF('Timesheet raw data'!E146>0,'Timesheet raw data'!G146/'Timesheet raw data'!E146,"") -> 65 | I146: Offshore Consultant | J146: ='Timesheet raw data'!D146&I146 -> Tenant1 Incident ManagementOffshore Consultant | K146: =IF('Timesheet raw data'!D146<>"",'Timesheet raw data'!D146&"-"&'Timesheet raw data'!F146,"") -> Tenant1 Incident Management-2011-11
B147: Offshore Consultant2 | C147: 2011-11-09 | D147: Tenant1 Incident Management | E147: 4 | F147: 2011-11 | G147: 260 | H147: =IF('Timesheet raw data'!E147>0,'Timesheet raw data'!G147/'Timesheet raw data'!E147,"") -> 65 | I147: Offshore Consultant | J147: ='Timesheet raw data'!D147&I147 -> Tenant1 Incident ManagementOffshore Consultant | K147: =IF('Timesheet raw data'!D147<>"",'Timesheet raw data'!D147&"-"&'Timesheet raw data'!F147,"") -> Tenant1 Incident Management-2011-11
B148: Sr Consultant4 | C148: 2011-11-09 | D148: Tenant1 Incident Management | E148: 8 | F148: 2011-11 | G148: 720 | H148: =IF('Timesheet raw data'!E148>0,'Timesheet raw data'!G148/'Timesheet raw data'!E148,"") -> 90 | I148: Sr Consultant | J148: ='Timesheet raw data'!D148&I148 -> Tenant1 Incident ManagementSr Consultant | K148: =IF('Timesheet raw data'!D148<>"",'Timesheet raw data'!D148&"-"&'Timesheet raw data'!F148,"") -> Tenant1 Incident Management-2011-11
B149: Architect3 | C149: 2011-11-09 | D149: Tenant1 Incident Management | E149: 1.5 | F149: 2011-11 | G149: 144 | H149: =IF('Timesheet raw data'!E149>0,'Timesheet raw data'!G149/'Timesheet raw data'!E149,"") -> 96 | I149: Architect | J149: ='Timesheet raw data'!D149&I149 -> Tenant1 Incident ManagementArchitect | K149: =IF('Timesheet raw data'!D149<>"",'Timesheet raw data'!D149&"-"&'Timesheet raw data'!F149,"") -> Tenant1 Incident Management-2011-11
B150: Architect2 | C150: 2011-11-09 | D150: Tenant2 Incident Management | E150: 1 | F150: 2011-11 | G150: 96 | H150: =IF('Timesheet raw data'!E150>0,'Timesheet raw data'!G150/'Timesheet raw data'!E150,"") -> 96 | I150: Architect | J150: ='Timesheet raw data'!D150&I150 -> Tenant2 Incident ManagementArchitect | K150: =IF('Timesheet raw data'!D150<>"",'Timesheet raw data'!D150&"-"&'Timesheet raw data'!F150,"") -> Tenant2 Incident Management-2011-11
B151: Architect3 | C151: 2011-11-09 | D151: Tenant2 Incident Management | E151: 6 | F151: 2011-11 | G151: 576 | H151: =IF('Timesheet raw data'!E151>0,'Timesheet raw data'!G151/'Timesheet raw data'!E151,"") -> 96 | I151: Architect | J151: ='Timesheet raw data'!D151&I151 -> Tenant2 Incident ManagementArchitect | K151: =IF('Timesheet raw data'!D151<>"",'Timesheet raw data'!D151&"-"&'Timesheet raw data'!F151,"") -> Tenant2 Incident Management-2011-11
B152: Offshore Consultant1 | C152: 2011-11-10 | D152: Tenant1 Incident Management | E152: 4 | F152: 2011-11 | G152: 260 | H152: =IF('Timesheet raw data'!E152>0,'Timesheet raw data'!G152/'Timesheet raw data'!E152,"") -> 65 | I152: Offshore Consultant | J152: ='Timesheet raw data'!D152&I152 -> Tenant1 Incident ManagementOffshore Consultant | K152: =IF('Timesheet raw data'!D152<>"",'Timesheet raw data'!D152&"-"&'Timesheet raw data'!F152,"") -> Tenant1 Incident Management-2011-11
B153: Offshore Consultant2 | C153: 2011-11-10 | D153: Tenant1 Incident Management | E153: 4 | F153: 2011-11 | G153: 260 | H153: =IF('Timesheet raw data'!E153>0,'Timesheet raw data'!G153/'Timesheet raw data'!E153,"") -> 65 | I153: Offshore Consultant | J153: ='Timesheet raw data'!D153&I153 -> Tenant1 Incident ManagementOffshore Consultant | K153: =IF('Timesheet raw data'!D153<>"",'Timesheet raw data'!D153&"-"&'Timesheet raw data'!F153,"") -> Tenant1 Incident Management-2011-11
B154: Sr Consultant4 | C154: 2011-11-10 | D154: Tenant1 Incident Management | E154: 8 | F154: 2011-11 | G154: 720 | H154: =IF('Timesheet raw data'!E154>0,'Timesheet raw data'!G154/'Timesheet raw data'!E154,"") -> 90 | I154: Sr Consultant | J154: ='Timesheet raw data'!D154&I154 -> Tenant1 Incident ManagementSr Consultant | K154: =IF('Timesheet raw data'!D154<>"",'Timesheet raw data'!D154&"-"&'Timesheet raw data'!F154,"") -> Tenant1 Incident Management-2011-11
B155: Sr Consultant1 | C155: 2011-11-10 | D155: Tenant2 Incident Management | E155: 8 | F155: 2011-11 | G155: 720 | H155: =IF('Timesheet raw data'!E155>0,'Timesheet raw data'!G155/'Timesheet raw data'!E155,"") -> 90 | I155: Sr Consultant | J155: ='Timesheet raw data'!D155&I155 -> Tenant2 Incident ManagementSr Consultant | K155: =IF('Timesheet raw data'!D155<>"",'Timesheet raw data'!D155&"-"&'Timesheet raw data'!F155,"") -> Tenant2 Incident Management-2011-11
B156: Offshore Consultant1 | C156: 2011-11-11 | D156: Tenant1 Incident Management | E156: 4 | F156: 2011-11 | G156: 260 | H156: =IF('Timesheet raw data'!E156>0,'Timesheet raw data'!G156/'Timesheet raw data'!E156,"") -> 65 | I156: Offshore Consultant | J156: ='Timesheet raw data'!D156&I156 -> Tenant1 Incident ManagementOffshore Consultant | K156: =IF('Timesheet raw data'!D156<>"",'Timesheet raw data'!D156&"-"&'Timesheet raw data'!F156,"") -> Tenant1 Incident Management-2011-11
B157: Project Manager1 | C157: 2011-11-11 | D157: Tenant1 Incident Management | E157: 2 | F157: 2011-11 | G157: 200 | H157: =IF('Timesheet raw data'!E157>0,'Timesheet raw data'!G157/'Timesheet raw data'!E157,"") -> 100 | I157: Project Manager | J157: ='Timesheet raw data'!D157&I157 -> Tenant1 Incident ManagementProject Manager | K157: =IF('Timesheet raw data'!D157<>"",'Timesheet raw data'!D157&"-"&'Timesheet raw data'!F157,"") -> Tenant1 Incident Management-2011-11
B158: Offshore Consultant2 | C158: 2011-11-11 | D158: Tenant1 Incident Management | E158: 4 | F158: 2011-11 | G158: 260 | H158: =IF('Timesheet raw data'!E158>0,'Timesheet raw data'!G158/'Timesheet raw data'!E158,"") -> 65 | I158: Offshore Consultant | J158: ='Timesheet raw data'!D158&I158 -> Tenant1 Incident ManagementOffshore Consultant | K158: =IF('Timesheet raw data'!D158<>"",'Timesheet raw data'!D158&"-"&'Timesheet raw data'!F158,"") -> Tenant1 Incident Management-2011-11
B159: Architect3 | C159: 2011-11-11 | D159: Tenant1 Incident Management | E159: 0.5 | F159: 2011-11 | G159: 48 | H159: =IF('Timesheet raw data'!E159>0,'Timesheet raw data'!G159/'Timesheet raw data'!E159,"") -> 96 | I159: Architect | J159: ='Timesheet raw data'!D159&I159 -> Tenant1 Incident ManagementArchitect | K159: =IF('Timesheet raw data'!D159<>"",'Timesheet raw data'!D159&"-"&'Timesheet raw data'!F159,"") -> Tenant1 Incident Management-2011-11
B160: Sr Consultant1 | C160: 2011-11-11 | D160: Tenant2 Incident Management | E160: 8 | F160: 2011-11 | G160: 720 | H160: =IF('Timesheet raw data'!E160>0,'Timesheet raw data'!G160/'Timesheet raw data'!E160,"") -> 90 | I160: Sr Consultant | J160: ='Timesheet raw data'!D160&I160 -> Tenant2 Incident ManagementSr Consultant | K160: =IF('Timesheet raw data'!D160<>"",'Timesheet raw data'!D160&"-"&'Timesheet raw data'!F160,"") -> Tenant2 Incident Management-2011-11
B161: Project Manager1 | C161: 2011-11-11 | D161: Tenant2 Incident Management | E161: 1 | F161: 2011-11 | G161: 100 | H161: =IF('Timesheet raw data'!E161>0,'Timesheet raw data'!G161/'Timesheet raw data'!E161,"") -> 100 | I161: Project Manager | J161: ='Timesheet raw data'!D161&I161 -> Tenant2 Incident ManagementProject Manager | K161: =IF('Timesheet raw data'!D161<>"",'Timesheet raw data'!D161&"-"&'Timesheet raw data'!F161,"") -> Tenant2 Incident Management-2011-11
B162: Architect2 | C162: 2011-11-11 | D162: Tenant2 Incident Management | E162: 2 | F162: 2011-11 | G162: 192 | H162: =IF('Timesheet raw data'!E162>0,'Timesheet raw data'!G162/'Timesheet raw data'!E162,"") -> 96 | I162: Architect | J162: ='Timesheet raw data'!D162&I162 -> Tenant2 Incident ManagementArchitect | K162: =IF('Timesheet raw data'!D162<>"",'Timesheet raw data'!D162&"-"&'Timesheet raw data'!F162,"") -> Tenant2 Incident Management-2011-11
B163: Offshore Consultant1 | C163: 2011-11-14 | D163: Tenant1 Incident Management | E163: 4 | F163: 2011-11 | G163: 260 | H163: =IF('Timesheet raw data'!E163>0,'Timesheet raw data'!G163/'Timesheet raw data'!E163,"") -> 65 | I163: Offshore Consultant | J163: ='Timesheet raw data'!D163&I163 -> Tenant1 Incident ManagementOffshore Consultant | K163: =IF('Timesheet raw data'!D163<>"",'Timesheet raw data'!D163&"-"&'Timesheet raw data'!F163,"") -> Tenant1 Incident Management-2011-11
B164: Project Manager1 | C164: 2011-11-14 | D164: Tenant1 Incident Management | E164: 1 | F164: 2011-11 | G164: 100 | H164: =IF('Timesheet raw data'!E164>0,'Timesheet raw data'!G164/'Timesheet raw data'!E164,"") -> 100 | I164: Project Manager | J164: ='Timesheet raw data'!D164&I164 -> Tenant1 Incident ManagementProject Manager | K164: =IF('Timesheet raw data'!D164<>"",'Timesheet raw data'!D164&"-"&'Timesheet raw data'!F164,"") -> Tenant1 Incident Management-2011-11
B165: Offshore Consultant2 | C165: 2011-11-14 | D165: Tenant1 Incident Management | E165: 4 | F165: 2011-11 | G165: 260 | H165: =IF('Timesheet raw data'!E165>0,'Timesheet raw data'!G165/'Timesheet raw data'!E165,"") -> 65 | I165: Offshore Consultant | J165: ='Timesheet raw data'!D165&I165 -> Tenant1 Incident ManagementOffshore Consultant | K165: =IF('Timesheet raw data'!D165<>"",'Timesheet raw data'!D165&"-"&'Timesheet raw data'!F165,"") -> Tenant1 Incident Management-2011-11
B166: Sr Consultant4 | C166: 2011-11-14 | D166: Tenant1 Incident Management | E166: 8 | F166: 2011-11 | G166: 720 | H166: =IF('Timesheet raw data'!E166>0,'Timesheet raw data'!G166/'Timesheet raw data'!E166,"") -> 90 | I166: Sr Consultant | J166: ='Timesheet raw data'!D166&I166 -> Tenant1 Incident ManagementSr Consultant | K166: =IF('Timesheet raw data'!D166<>"",'Timesheet raw data'!D166&"-"&'Timesheet raw data'!F166,"") -> Tenant1 Incident Management-2011-11
B167: Architect3 | C167: 2011-11-14 | D167: Tenant1 Incident Management | E167: 4 | F167: 2011-11 | G167: 384 | H167: =IF('Timesheet raw data'!E167>0,'Timesheet raw data'!G167/'Timesheet raw data'!E167,"") -> 96 | I167: Architect | J167: ='Timesheet raw data'!D167&I167 -> Tenant1 Incident ManagementArchitect | K167: =IF('Timesheet raw data'!D167<>"",'Timesheet raw data'!D167&"-"&'Timesheet raw data'!F167,"") -> Tenant1 Incident Management-2011-11
B168: Sr Consultant1 | C168: 2011-11-14 | D168: Tenant2 Incident Management | E168: 3 | F168: 2011-11 | G168: 270 | H168: =IF('Timesheet raw data'!E168>0,'Timesheet raw data'!G168/'Timesheet raw data'!E168,"") -> 90 | I168: Sr Consultant | J168: ='Timesheet raw data'!D168&I168 -> Tenant2 Incident ManagementSr Consultant | K168: =IF('Timesheet raw data'!D168<>"",'Timesheet raw data'!D168&"-"&'Timesheet raw data'!F168,"") -> Tenant2 Incident Management-2011-11
B169: Sr Consultant1 | C169: 2011-11-14 | D169: Tenant2 Incident Management | E169: 5 | F169: 2011-11 | G169: 450 | H169: =IF('Timesheet raw data'!E169>0,'Timesheet raw data'!G169/'Timesheet raw data'!E169,"") -> 90 | I169: Sr Consultant | J169: ='Timesheet raw data'!D169&I169 -> Tenant2 Incident ManagementSr Consultant | K169: =IF('Timesheet raw data'!D169<>"",'Timesheet raw data'!D169&"-"&'Timesheet raw data'!F169,"") -> Tenant2 Incident Management-2011-11
B170: Project Manager1 | C170: 2011-11-14 | D170: Tenant2 Incident Management | E170: 2 | F170: 2011-11 | G170: 200 | H170: =IF('Timesheet raw data'!E170>0,'Timesheet raw data'!G170/'Timesheet raw data'!E170,"") -> 100 | I170: Project Manager | J170: ='Timesheet raw data'!D170&I170 -> Tenant2 Incident ManagementProject Manager | K170: =IF('Timesheet raw data'!D170<>"",'Timesheet raw data'!D170&"-"&'Timesheet raw data'!F170,"") -> Tenant2 Incident Management-2011-11
B171: Architect2 | C171: 2011-11-14 | D171: Tenant2 Incident Management | E171: 2 | F171: 2011-11 | G171: 192 | H171: =IF('Timesheet raw data'!E171>0,'Timesheet raw data'!G171/'Timesheet raw data'!E171,"") -> 96 | I171: Architect | J171: ='Timesheet raw data'!D171&I171 -> Tenant2 Incident ManagementArchitect | K171: =IF('Timesheet raw data'!D171<>"",'Timesheet raw data'!D171&"-"&'Timesheet raw data'!F171,"") -> Tenant2 Incident Management-2011-11
B172: Architect2 | C172: 2011-11-14 | D172: Tenant2 Incident Management | E172: 2 | F172: 2011-11 | G172: 192 | H172: =IF('Timesheet raw data'!E172>0,'Timesheet raw data'!G172/'Timesheet raw data'!E172,"") -> 96 | I172: Architect | J172: ='Timesheet raw data'!D172&I172 -> Tenant2 Incident ManagementArchitect | K172: =IF('Timesheet raw data'!D172<>"",'Timesheet raw data'!D172&"-"&'Timesheet raw data'!F172,"") -> Tenant2 Incident Management-2011-11
B173: Architect3 | C173: 2011-11-14 | D173: Tenant2 Incident Management | E173: 3.5 | F173: 2011-11 | G173: 336 | H173: =IF('Timesheet raw data'!E173>0,'Timesheet raw data'!G173/'Timesheet raw data'!E173,"") -> 96 | I173: Architect | J173: ='Timesheet raw data'!D173&I173 -> Tenant2 Incident ManagementArchitect | K173: =IF('Timesheet raw data'!D173<>"",'Timesheet raw data'!D173&"-"&'Timesheet raw data'!F173,"") -> Tenant2 Incident Management-2011-11
B174: Offshore Consultant1 | C174: 2011-11-15 | D174: Tenant1 Incident Management | E174: 4 | F174: 2011-11 | G174: 260 | H174: =IF('Timesheet raw data'!E174>0,'Timesheet raw data'!G174/'Timesheet raw data'!E174,"") -> 65 | I174: Offshore Consultant | J174: ='Timesheet raw data'!D174&I174 -> Tenant1 Incident ManagementOffshore Consultant | K174: =IF('Timesheet raw data'!D174<>"",'Timesheet raw data'!D174&"-"&'Timesheet raw data'!F174,"") -> Tenant1 Incident Management-2011-11
B175: Offshore Consultant2 | C175: 2011-11-15 | D175: Tenant1 Incident Management | E175: 4 | F175: 2011-11 | G175: 260 | H175: =IF('Timesheet raw data'!E175>0,'Timesheet raw data'!G175/'Timesheet raw data'!E175,"") -> 65 | I175: Offshore Consultant | J175: ='Timesheet raw data'!D175&I175 -> Tenant1 Incident ManagementOffshore Consultant | K175: =IF('Timesheet raw data'!D175<>"",'Timesheet raw data'!D175&"-"&'Timesheet raw data'!F175,"") -> Tenant1 Incident Management-2011-11
B176: Sr Consultant4 | C176: 2011-11-15 | D176: Tenant1 Incident Management | E176: 8 | F176: 2011-11 | G176: 720 | H176: =IF('Timesheet raw data'!E176>0,'Timesheet raw data'!G176/'Timesheet raw data'!E176,"") -> 90 | I176: Sr Consultant | J176: ='Timesheet raw data'!D176&I176 -> Tenant1 Incident ManagementSr Consultant | K176: =IF('Timesheet raw data'!D176<>"",'Timesheet raw data'!D176&"-"&'Timesheet raw data'!F176,"") -> Tenant1 Incident Management-2011-11
B177: Sr Consultant1 | C177: 2011-11-15 | D177: Tenant2 Incident Management | E177: 6 | F177: 2011-11 | G177: 540 | H177: =IF('Timesheet raw data'!E177>0,'Timesheet raw data'!G177/'Timesheet raw data'!E177,"") -> 90 | I177: Sr Consultant | J177: ='Timesheet raw data'!D177&I177 -> Tenant2 Incident ManagementSr Consultant | K177: =IF('Timesheet raw data'!D177<>"",'Timesheet raw data'!D177&"-"&'Timesheet raw data'!F177,"") -> Tenant2 Incident Management-2011-11
B178: Project Manager1 | C178: 2011-11-15 | D178: Tenant2 Incident Management | E178: 1 | F178: 2011-11 | G178: 100 | H178: =IF('Timesheet raw data'!E178>0,'Timesheet raw data'!G178/'Timesheet raw data'!E178,"") -> 100 | I178: Project Manager | J178: ='Timesheet raw data'!D178&I178 -> Tenant2 Incident ManagementProject Manager | K178: =IF('Timesheet raw data'!D178<>"",'Timesheet raw data'!D178&"-"&'Timesheet raw data'!F178,"") -> Tenant2 Incident Management-2011-11
B179: Architect2 | C179: 2011-11-15 | D179: Tenant2 Incident Management | E179: 1 | F179: 2011-11 | G179: 96 | H179: =IF('Timesheet raw data'!E179>0,'Timesheet raw data'!G179/'Timesheet raw data'!E179,"") -> 96 | I179: Architect | J179: ='Timesheet raw data'!D179&I179 -> Tenant2 Incident ManagementArchitect | K179: =IF('Timesheet raw data'!D179<>"",'Timesheet raw data'!D179&"-"&'Timesheet raw data'!F179,"") -> Tenant2 Incident Management-2011-11
B180: Offshore Consultant1 | C180: 2011-11-16 | D180: Tenant1 Incident Management | E180: 4 | F180: 2011-11 | G180: 260 | H180: =IF('Timesheet raw data'!E180>0,'Timesheet raw data'!G180/'Timesheet raw data'!E180,"") -> 65 | I180: Offshore Consultant | J180: ='Timesheet raw data'!D180&I180 -> Tenant1 Incident ManagementOffshore Consultant | K180: =IF('Timesheet raw data'!D180<>"",'Timesheet raw data'!D180&"-"&'Timesheet raw data'!F180,"") -> Tenant1 Incident Management-2011-11
B181: Offshore Consultant2 | C181: 2011-11-16 | D181: Tenant1 Incident Management | E181: 4 | F181: 2011-11 | G181: 260 | H181: =IF('Timesheet raw data'!E181>0,'Timesheet raw data'!G181/'Timesheet raw data'!E181,"") -> 65 | I181: Offshore Consultant | J181: ='Timesheet raw data'!D181&I181 -> Tenant1 Incident ManagementOffshore Consultant | K181: =IF('Timesheet raw data'!D181<>"",'Timesheet raw data'!D181&"-"&'Timesheet raw data'!F181,"") -> Tenant1 Incident Management-2011-11
B182: Sr Consultant4 | C182: 2011-11-16 | D182: Tenant1 Incident Management | E182: 8 | F182: =IF(C182<>"",TEXT(YEAR(C182),"0000")&"-"&TEXT(MONTH(C182),"00"),"") -> 2011-11 | G182: 720 | H182: =IF('Timesheet raw data'!E182>0,'Timesheet raw data'!G182/'Timesheet raw data'!E182,"") -> 90 | I182: Sr Consultant | J182: ='Timesheet raw data'!D182&I182 -> Tenant1 Incident ManagementSr Consultant | K182: =IF('Timesheet raw data'!D182<>"",'Timesheet raw data'!D182&"-"&'Timesheet raw data'!F182,"") -> Tenant1 Incident Management-2011-11
B183: Sr Consultant1 | C183: 2011-11-16 | D183: Tenant2 Incident Management | E183: 8 | F183: 2011-11 | G183: 720 | H183: =IF('Timesheet raw data'!E183>0,'Timesheet raw data'!G183/'Timesheet raw data'!E183,"") -> 90 | I183: Sr Consultant | J183: ='Timesheet raw data'!D183&I183 -> Tenant2 Incident ManagementSr Consultant | K183: =IF('Timesheet raw data'!D183<>"",'Timesheet raw data'!D183&"-"&'Timesheet raw data'!F183,"") -> Tenant2 Incident Management-2011-11
B184: Architect2 | C184: 2011-11-16 | D184: Tenant2 Incident Management | E184: 2 | F184: 2011-11 | G184: 192 | H184: =IF('Timesheet raw data'!E184>0,'Timesheet raw data'!G184/'Timesheet raw data'!E184,"") -> 96 | I184: Architect | J184: ='Timesheet raw data'!D184&I184 -> Tenant2 Incident ManagementArchitect | K184: =IF('Timesheet raw data'!D184<>"",'Timesheet raw data'!D184&"-"&'Timesheet raw data'!F184,"") -> Tenant2 Incident Management-2011-11
B185: Offshore Consultant1 | C185: 2011-11-17 | D185: Tenant1 Incident Management | E185: 4 | F185: 2011-11 | G185: 260 | H185: =IF('Timesheet raw data'!E185>0,'Timesheet raw data'!G185/'Timesheet raw data'!E185,"") -> 65 | I185: Offshore Consultant | J185: ='Timesheet raw data'!D185&I185 -> Tenant1 Incident ManagementOffshore Consultant | K185: =IF('Timesheet raw data'!D185<>"",'Timesheet raw data'!D185&"-"&'Timesheet raw data'!F185,"") -> Tenant1 Incident Management-2011-11
B186: Offshore Consultant2 | C186: 2011-11-17 | D186: Tenant1 Incident Management | E186: 4 | F186: 2011-11 | G186: 260 | H186: =IF('Timesheet raw data'!E186>0,'Timesheet raw data'!G186/'Timesheet raw data'!E186,"") -> 65 | I186: Offshore Consultant | J186: ='Timesheet raw data'!D186&I186 -> Tenant1 Incident ManagementOffshore Consultant | K186: =IF('Timesheet raw data'!D186<>"",'Timesheet raw data'!D186&"-"&'Timesheet raw data'!F186,"") -> Tenant1 Incident Management-2011-11
B187: Sr Consultant4 | C187: 2011-11-17 | D187: Tenant1 Incident Management | E187: 8 | F187: 2011-11 | G187: 720 | H187: =IF('Timesheet raw data'!E187>0,'Timesheet raw data'!G187/'Timesheet raw data'!E187,"") -> 90 | I187: Sr Consultant | J187: ='Timesheet raw data'!D187&I187 -> Tenant1 Incident ManagementSr Consultant | K187: =IF('Timesheet raw data'!D187<>"",'Timesheet raw data'!D187&"-"&'Timesheet raw data'!F187,"") -> Tenant1 Incident Management-2011-11
B188: Architect3 | C188: 2011-11-17 | D188: Tenant1 Incident Management | E188: 1 | F188: 2011-11 | G188: 96 | H188: =IF('Timesheet raw data'!E188>0,'Timesheet raw data'!G188/'Timesheet raw data'!E188,"") -> 96 | I188: Architect | J188: ='Timesheet raw data'!D188&I188 -> Tenant1 Incident ManagementArchitect | K188: =IF('Timesheet raw data'!D188<>"",'Timesheet raw data'!D188&"-"&'Timesheet raw data'!F188,"") -> Tenant1 Incident Management-2011-11
B189: Sr Consultant1 | C189: 2011-11-17 | D189: Tenant2 Incident Management | E189: 4 | F189: 2011-11 | G189: 360 | H189: =IF('Timesheet raw data'!E189>0,'Timesheet raw data'!G189/'Timesheet raw data'!E189,"") -> 90 | I189: Sr Consultant | J189: ='Timesheet raw data'!D189&I189 -> Tenant2 Incident ManagementSr Consultant | K189: =IF('Timesheet raw data'!D189<>"",'Timesheet raw data'!D189&"-"&'Timesheet raw data'!F189,"") -> Tenant2 Incident Management-2011-11
B190: Offshore Consultant1 | C190: 2011-11-18 | D190: Tenant1 Incident Management | E190: 4 | F190: 2011-11 | G190: 260 | H190: =IF('Timesheet raw data'!E190>0,'Timesheet raw data'!G190/'Timesheet raw data'!E190,"") -> 65 | I190: Offshore Consultant | J190: ='Timesheet raw data'!D190&I190 -> Tenant1 Incident ManagementOffshore Consultant | K190: =IF('Timesheet raw data'!D190<>"",'Timesheet raw data'!D190&"-"&'Timesheet raw data'!F190,"") -> Tenant1 Incident Management-2011-11
B191: Project Manager1 | C191: 2011-11-18 | D191: Tenant1 Incident Management | E191: 2 | F191: 2011-11 | G191: 200 | H191: =IF('Timesheet raw data'!E191>0,'Timesheet raw data'!G191/'Timesheet raw data'!E191,"") -> 100 | I191: Project Manager | J191: ='Timesheet raw data'!D191&I191 -> Tenant1 Incident ManagementProject Manager | K191: =IF('Timesheet raw data'!D191<>"",'Timesheet raw data'!D191&"-"&'Timesheet raw data'!F191,"") -> Tenant1 Incident Management-2011-11
B192: Offshore Consultant2 | C192: 2011-11-18 | D192: Tenant1 Incident Management | E192: 4 | F192: 2011-11 | G192: 260 | H192: =IF('Timesheet raw data'!E192>0,'Timesheet raw data'!G192/'Timesheet raw data'!E192,"") -> 65 | I192: Offshore Consultant | J192: ='Timesheet raw data'!D192&I192 -> Tenant1 Incident ManagementOffshore Consultant | K192: =IF('Timesheet raw data'!D192<>"",'Timesheet raw data'!D192&"-"&'Timesheet raw data'!F192,"") -> Tenant1 Incident Management-2011-11
B193: Sr Consultant4 | C193: 2011-11-18 | D193: Tenant1 Incident Management | E193: 8 | F193: 2011-11 | G193: 720 | H193: =IF('Timesheet raw data'!E193>0,'Timesheet raw data'!G193/'Timesheet raw data'!E193,"") -> 90 | I193: Sr Consultant | J193: ='Timesheet raw data'!D193&I193 -> Tenant1 Incident ManagementSr Consultant | K193: =IF('Timesheet raw data'!D193<>"",'Timesheet raw data'!D193&"-"&'Timesheet raw data'!F193,"") -> Tenant1 Incident Management-2011-11
B194: Architect3 | C194: 2011-11-18 | D194: Tenant1 Incident Management | E194: 0.75 | F194: 2011-11 | G194: 72 | H194: =IF('Timesheet raw data'!E194>0,'Timesheet raw data'!G194/'Timesheet raw data'!E194,"") -> 96 | I194: Architect | J194: ='Timesheet raw data'!D194&I194 -> Tenant1 Incident ManagementArchitect | K194: =IF('Timesheet raw data'!D194<>"",'Timesheet raw data'!D194&"-"&'Timesheet raw data'!F194,"") -> Tenant1 Incident Management-2011-11
B195: Project Manager1 | C195: 2011-11-18 | D195: Tenant2 Incident Management | E195: 1 | F195: 2011-11 | G195: 100 | H195: =IF('Timesheet raw data'!E195>0,'Timesheet raw data'!G195/'Timesheet raw data'!E195,"") -> 100 | I195: Project Manager | J195: ='Timesheet raw data'!D195&I195 -> Tenant2 Incident ManagementProject Manager | K195: =IF('Timesheet raw data'!D195<>"",'Timesheet raw data'!D195&"-"&'Timesheet raw data'!F195,"") -> Tenant2 Incident Management-2011-11
B196: Architect2 | C196: 2011-11-18 | D196: Tenant2 Incident Management | E196: 1 | F196: 2011-11 | G196: 96 | H196: =IF('Timesheet raw data'!E196>0,'Timesheet raw data'!G196/'Timesheet raw data'!E196,"") -> 96 | I196: Architect | J196: ='Timesheet raw data'!D196&I196 -> Tenant2 Incident ManagementArchitect | K196: =IF('Timesheet raw data'!D196<>"",'Timesheet raw data'!D196&"-"&'Timesheet raw data'!F196,"") -> Tenant2 Incident Management-2011-11
B197: Offshore Consultant1 | C197: 2011-11-21 | D197: Tenant1 Incident Management | E197: 2 | F197: 2011-11 | G197: 130 | H197: =IF('Timesheet raw data'!E197>0,'Timesheet raw data'!G197/'Timesheet raw data'!E197,"") -> 65 | I197: Offshore Consultant | J197: ='Timesheet raw data'!D197&I197 -> Tenant1 Incident ManagementOffshore Consultant | K197: =IF('Timesheet raw data'!D197<>"",'Timesheet raw data'!D197&"-"&'Timesheet raw data'!F197,"") -> Tenant1 Incident Management-2011-11
B198: Sr Consultant4 | C198: 2011-11-21 | D198: Tenant1 Incident Management | E198: 8 | F198: 2011-11 | G198: =VLOOKUP(B198,Program.ResourceTable,3,FALSE)*E198 -> 720 | H198: =IF('Timesheet raw data'!E198>0,'Timesheet raw data'!G198/'Timesheet raw data'!E198,"") -> 90 | I198: =IF(H198<>"",VLOOKUP(H198,Program.RateTable,2,FALSE),"") -> Sr Consultant | J198: ='Timesheet raw data'!D198&I198 -> Tenant1 Incident ManagementSr Consultant | K198: =IF('Timesheet raw data'!D198<>"",'Timesheet raw data'!D198&"-"&'Timesheet raw data'!F198,"") -> Tenant1 Incident Management-2011-11
B199: Sr Consultant1 | C199: 2011-11-21 | D199: Tenant2 Incident Management | E199: 2 | F199: 2011-11 | G199: 180 | H199: =IF('Timesheet raw data'!E199>0,'Timesheet raw data'!G199/'Timesheet raw data'!E199,"") -> 90 | I199: Sr Consultant | J199: ='Timesheet raw data'!D199&I199 -> Tenant2 Incident ManagementSr Consultant | K199: =IF('Timesheet raw data'!D199<>"",'Timesheet raw data'!D199&"-"&'Timesheet raw data'!F199,"") -> Tenant2 Incident Management-2011-11
B200: Architect2 | C200: 2011-11-21 | D200: Tenant2 Incident Management | E200: 1.5 | F200: 2011-11 | G200: 144 | H200: =IF('Timesheet raw data'!E200>0,'Timesheet raw data'!G200/'Timesheet raw data'!E200,"") -> 96 | I200: Architect | J200: ='Timesheet raw data'!D200&I200 -> Tenant2 Incident ManagementArchitect | K200: =IF('Timesheet raw data'!D200<>"",'Timesheet raw data'!D200&"-"&'Timesheet raw data'!F200,"") -> Tenant2 Incident Management-2011-11
... 107 more rows

Sheet Estimate to complete
A1: ETC
B2: Project Estimate to Complete
B3: Program: | C3: =Cover.ProgramName -> DEMO
B5: Update estimate to complete for each project weekly!
C6: Status for Project | D6: Tenant1
B7: Role | C7: =E25 -> Available MD | D7: =E16 -> Remaining work planned | E7: Avail (+) MD / Overrun (-) MD | F7: Hrl. Rates | G7: Avail (+) Cost / Overrun (-) Cost
B8: Project Manager | C8: 12.875 | D8: =E17 -> 11.4 | E8: =C8-D8 -> 1.475 | F8: 100 | G8: =F8*8*E8 -> 1180
B9: Architect | C9: 1.84375 | D9: 0 | E9: 1.84375 | F9: 96 | G9: 1416
B10: Senior Consultant | C10: 7.25 | D10: 10.5 | E10: -3.25 | F10: 90 | G10: -2340
B11: Associate Consultant | C11: =E29 -> 9.8125 | D11: =E20 -> 9 | E11: 0.8125 | F11: 75 | G11: 487.5
B12: Offshore Delivery | C12: =E30 -> -7 | D12: =E21 -> 0 | E12: -7 | F12: 65 | G12: -3640
B13: Sum | C13: =E31 -> 24.78125 | D13: =SUM(D8:D12) -> 30.9 | E13: =SUM(E8:E12) -> -6.11875 | F13: =SUM(F8:F12) -> 426 | G13: =SUM(G8:G12) -> -2896.5
E14: =E13/C22 -> -0.04661904762 | G14: =G13/((C17*F8+C18*F9+C19*F10+C20*F11+C21*F12)*8) -> -0.03216260632
B15: Project Plan
B16: Role | C16: Estimated MD + CRs | D16: Actual Work planned | E16: Remaining work planned
B17: Project Manager | C17: =C26 -> 20 | D17: 8.6 | E17: =C17-D17 -> 11.4
B18: Architect | C18: =C27 -> 21 | D18: 21 | E18: 0
B19: Senior Consultant | C19: 49 | D19: 38.5 | E19: 10.5
B20: Associate Consultant | C20: =C29 -> 15 | D20: 6 | E20: 9
B21: Offshore Delivery | C21: =C30 -> 26.25 | D21: 26.25 | E21: 0
B22: Sum | C22: =SUM(C17:C21) -> 131.25 | D22: =SUM(D17:D21) -> 100.35 | E22: =SUM(E17:E21) -> 30.9
B24: Timesheets / Actual work
B25: Role | C25: Estimated MD + CRs | D25: Actual work performed | E25: Available MD
B26: Project Manager | C26: =Program.Tenant1.PMTotalHours/8 -> 20 | D26: =Program.Tenant1.ActPMHours/8 -> 7.125 | E26: =C26-D26 -> 12.875
B27: Architect | C27: =Program.Tenant1.ArchTotalHours/8 -> 21 | D27: =Program.Tenant1.ActArchHours/8 -> 19.15625 | E27: 1.84375
B28: Senior Consultant | C28: =Program.Tenant1.SrConsTotalHours/8 -> 49 | D28: =Program.Tenant1.ActSrConsHours/8 -> 41.75 | E28: 7.25
B29: Associate Consultant | C29: =Program.Tenant1.AssocTotalHours/8 -> 15 | D29: =Program.Tenant1.ActAssConsHours/8 -> 5.1875 | E29: 9.8125
B30: Offshore Delivery | C30: =Program.Tenant1.OffshTotalHours/8 -> 26.25 | D30: =Program.Tenant1.ActOffshHours/8 -> 33.25 | E30: -7
B31: Sum | C31: =SUM(C26:C30) -> 131.25 | D31: =SUM(D26:D30) -> 106.46875 | E31: =SUM(E26:E30) -> 24.78125

Sheet Rolling plan
A1: rollingplan
B2: Rolling Plan
B3: Program: | C3: =Cover.ProgramName -> DEMO
B4: Update rolling plan with cutomer weekly! | E4: Calendar Week | F4: =TRUNC((D5-DATE(YEAR(D5+3-MOD(D5-2,7)),1,MOD(D5-2,7)-9))/7) -> 48 | J4: =rollingplan.WeekHeader -> Calendar Week | K4: =TRUNC((I5-DATE(YEAR(I5+3-MOD(I5-2,7)),1,MOD(I5-2,7)-9))/7) -> 49
B5: Project within Program | D5: 2011-11-28 | E5: 2011-11-29 | F5: 2011-11-30 | G5: 2011-12-01 | H5: 2011-12-02 | I5: 2011-12-05 | J5: 2011-12-06 | K5: 2011-12-07 | L5: 2011-12-08 | M5: 2011-12-09
B6: Dev Env. | D6: CA Tenant 2 Development | E6: CA Tenant 2 Development | F6: CA Tenant 2 Development | G6: CA Tenant 2 Development | H6: CA Tenant 2 Development | I6: CA Tenant 2 Development | J6: CA Tenant 2 Development | K6: CA Tenant 2 Development | L6: CA Tenant 2 Development | M6: CA Tenant 2 Development
B7: QA Env. | D7: Free | E7: CA Tenant2 Testing | F7: CA Tenant2 Testing | G7: CA Tenant2 Testing | H7: CA Tenant2 Testing | I7: CA Tenant2 Testing | J7: CA Tenant2 Testing | K7: CA Tenant2 Testing | L7: CA Tenant2 Testing | M7: CA Tenant2 Testing
B8: Prod Env. | D8: Production | E8: Production | F8: Production | G8: Production | H8: Production | I8: Production | J8: Production | K8: Production | L8: Production | M8: Production
B9: Project-TM1 Tenant1 | C9: CA Resource | D9: CA Architect1 | E9: CA Architect1 CA Archtect2 | F9: CA Architect1 CA Archtect2 | G9: CA Architect1 CA Archtect2 | H9: CA Architect1 CA Archtect2 | I9: CA Architect1 | J9: CA Architect1 CA Archtect2
B10: Project-TM1 Tenant1 | C10: Task(s) | D10: Functional design for request and change managmeent | E10: Requirement specification for request and change management | F10: Requirement specification for request and change management | G10: Requirement specification for request and change management | H10: Requirement specification for request and change management | I10: Review requirement specification | J10: Requirement specification signoff
B11: Project-TM1 Tenant1 | C11: Expected Output / Deliverable | H11: Requirement Specification
B12: Project-TM1 Tenant1 | C12: Customer SME | H12: Customer lead Architect1 | I12: Customer lead Architect1 | J12: Customer lead Architect1
B13: Project-TM2 Tenant2 | C13: CA Resource | D13: CA Sr Consultant1 | E13: CA Sr Consultant1 | F13: CA Sr Consultant1 | G13: CA Sr Consultant1 CA Offshore consultant1 | H13: CA Sr Consultant1 | I13: CA Sr Consultant1 | J13: CA Sr Consultant1 | K13: CA Sr Consultant1 | L13: CA Sr Consultant1 | M13: CA Sr Consultant1
B14: Project-TM2 Tenant2 | C14: Task(s)
B15: Project-TM2 Tenant2 | C15: Expected Output / Deliverable | D15: On-Site Move to QA environment. | E15: On-Site Move to QA environment. | F15: Documentation updates and technical testing to prepare for handover of QA | G15: Documentation updates and technical testing to prepare for handover of QA Remote Work Move to QA environment. | H15: Documentation updates and technical testing to prepare for handover of QA | J15: UAT1 in Vienna | K15: UAT1 in Vienna | L15: Remote Rework for UAT1 Updating Release documentation and applying changes to QA environment | M15: Remote Rework for UAT1 Updating Release documentation and applying changes to QA environment
B16: Project-TM2 Tenant2 | C16: Customer SME
B17: Project-TM3 Tenant3 | C17: CA Resource
B18: Project-TM3 Tenant3 | C18: Task(s)
B19: Project-TM3 Tenant3 | C19: Expected Output / Deliverable
B20: Project-TM3 Tenant3 | C20: Customer SME

Sheet Traffic Light report
A1: traffic_light_report
B2: Traffic Light Report | M2: Enter "TLR_G" for a green traffic light. "TLR_Y" / "TLR_R" for yellow and red. Then hit button "Update Traffic Lights"
B3: Program: | C3: =Cover.ProgramName -> DEMO
B4: Update traffic light report every month!
B5: Program | H5: As of December 2011
B7: Expected program benefits | F7: Status | H7: Trend
C8: Availability of resources | D8: Prevent Incidents from happening and to minimize the Impact of Incidents that cannot be prevented. | F8: TLR_G | H8: TLR_G
D9: < Enter short status in this line>
C10: Roll Out capability | D10: Integration of Service Desk with external systems "A" and "B". | F10: TLR_G | H10: TLR_G
D11: < Enter short status in this line>
C12: Reduce Costs | D12: Base infrastructure for the on-boarding of multiple tenants on a single physical system. | F12: TLR_G | H12: TLR_G
D13: < Enter short status in this line>
C14: Aligned Planing | D14: Planning aligned to intial program plan | F14: TLR_G | H14: TLR_G
D15: < Enter short status in this line>
C16: Faster and constant success | D16: Regular progress with regard to requiremnets of the business. | F16: TLR_Y | H16: TLR_Y
B19: Projects
B21: Project Status | C21: Ongoing | F21: Overall Status | G21: Schedule | H21: Budget | I21: Scope | J21: Resources
C22: Tenant3 Incident Management | D22: Implement Incident Management for Tenant 3 | F22: TLR_G | G22: TLR_Y | H22: TLR_G | I22: TLR_G | J22: TLR_G
F25: < Enter short status in this line>
C26: Tenant2 Problem Management | D26: Implement Problem Management for Tenant 2 | F26: TLR_G | G26: TLR_G | H26: TLR_G | I26: TLR_G | J26: TLR_G
F30: < Enter short status in this line>
C31: Finished | F31: Overall Status | G31: Schedule | H31: Budget | I31: Scope | J31: Resources
C32: Tenant1 Incident Management | D32: Implement Incident Management for Tenant 1 | F32: TLR_G | G32: TLR_G | H32: TLR_G | I32: TLR_G | J32: TLR_G
F33: < Enter short status in this line>
C34: New / Eval | F34: Overall Status
C35: Tenant 1 Change Management | D35: Implement Change Management for Tenant 1 | F35: TLR_G
F36: < Enter short status in this line>
B38: Reporting categories | C38: Dimension | D38: Project - Green | E38: Project - Amber | F38: Project - Red
C39: Schedule | D39: Next Milestone and overall plans on track. | E39: Issues achieving next Milestone and/or overall timeline. | F39: Next milestone and/or overall timeline will not be met.
C40: Budget | D40: Currently within budget and forecast to remain within budget. | E40: Currently not in budget and/or overall budget will be exceeded by <5%. | F40: Currently not in budget and/or overall budget will be exceeded by >5%.
C41: Scope | D41: Scope and objectives are agreed with all stakeholders and can be met. | E41: Different understanding within stakeholder and/or objectives are in danger. | F41: Scope/Objectives cannot be met currently.
C42: Resources | D42: Staffing is appropriate | E42: Issues with staffing. | F42: Cannot be executed with current staffing.
B47: Do not delete these traffic lights which are the base for the images above!

Sheet Scoreboard Risiken u. Chancen
B2: Scoreboard der Risiken und Chancen
C3: Übersicht der Risiken | X3: Übersicht der Chancen | AB3: percent ranges | AC3: exposure ranges
D4: Auswirkungen | W4: Auswirkungen | AB4: 15 | AC4: 2
B5: Wahrscheinlichkeit in % | D5: =D16 -> 1 | E5: =E16 -> 2 | F5: 3 | G5: 4 | H5: 5 | I5: 6 | J5: 7 | K5: 8 | L5: 9 | M5: 10 | N5: 10 | O5: 9 | P5: 8 | Q5: 7 | R5: 6 | S5: 5 | T5: 4 | U5: 3 | V5: 2 | W5: 1 | Y5: Wahrscheinlichkeit in % | AB5: 35 | AC5: 4
C6: 100 | D6: =COUNTIFS('Detailbewertung Risiken'!$D:$D, ">=" & $C7, 'Detailbewertung Risiken'!$D:$D, "<" &$C6, 'Detailbewertung Risiken'!$E:$E,">"&D$16, 'Detailbewertung Risiken'!$E:$E,"<=" &E$16) -> 0 | F6: =COUNTIFS('Detailbewertung Risiken'!$D:$D, ">=" & $C7, 'Detailbewertung Risiken'!$D:$D, "<" &$C6, 'Detailbewertung Risiken'!$E:$E,">"&F$16, 'Detailbewertung Risiken'!$E:$E,"<=" &G$16) -> 0 | H6: =COUNTIFS('Detailbewertung Risiken'!$D:$D, ">=" & $C7, 'Detailbewertung Risiken'!$D:$D, "<" &$C6, 'Detailbewertung Risiken'!$E:$E,">"&H$16, 'Detailbewertung Risiken'!$E:$E,"<=" &I$16) -> 0 | J6: =COUNTIFS('Detailbewertung Risiken'!$D:$D, ">=" & $C7, 'Detailbewertung Risiken'!$D:$D, "<" &$C6, 'Detailbewertung Risiken'!$E:$E,">"&J$16, 'Detailbewertung Risiken'!$E:$E,"<=" &K$16) -> 0 | L6: =COUNTIFS('Detailbewertung Risiken'!$D:$D, ">=" & $C7, 'Detailbewertung Risiken'!$D:$D, "<" &$C6, 'Detailbewertung Risiken'!$E:$E,">"&L$16, 'Detailbewertung Risiken'!$E:$E,"<=" &M$16) -> 1 | N6: =COUNTIFS('Detailbewertung Chancen'!$D:$D, ">=" & $C7, 'Detailbewertung Chancen'!$D:$D, "<" &$C6, 'Detailbewertung Chancen'!$E:$E,"<="&N$16, 'Detailbewertung Chancen'!$E:$E,">" &O$16) -> 0 | P6: =COUNTIFS('Detailbewertung Chancen'!$D:$D, ">=" & $C7, 'Detailbewertung Chancen'!$D:$D, "<" &$C6, 'Detailbewertung Chancen'!$E:$E,"<="&P$16, 'Detailbewertung Chancen'!$E:$E,">" &Q$16) -> 1 | R6: =COUNTIFS('Detailbewertung Chancen'!$D:$D, ">=" & $C7, 'Detailbewertung Chancen'!$D:$D, "<" &$C6, 'Detailbewertung Chancen'!$E:$E,"<="&R$16, 'Detailbewertung Chancen'!$E:$E,">" &S$16) -> 0 | T6: =COUNTIFS('Detailbewertung Chancen'!$D:$D, ">=" & $C7, 'Detailbewertung Chancen'!$D:$D, "<" &$C6, 'Detailbewertung Chancen'!$E:$E,"<="&T$16, 'Detailbewertung Chancen'!$E:$E,">" &U$16) -> 0 | V6: =COUNTIFS('Detailbewertung Chancen'!$D:$D, ">=" & $C7, 'Detailbewertung Chancen'!$D:$D, "<" &$C6, 'Detailbewertung Chancen'!$E:$E,"<="&V$16, 'Detailbewertung Chancen'!$E:$E,">" &W$16) -> 0 | X6: =C6 -> 100 | AB6: 65 | AC6: 6
C7: 81 | X7: 81 | AB7: 85 | AC7: 8
C8: 80 | D8: =COUNTIFS('Detailbewertung Risiken'!$D:$D, ">=" & $C9, 'Detailbewertung Risiken'!$D:$D, "<" &$C8, 'Detailbewertung Risiken'!$E:$E,">"&D$16, 'Detailbewertung Risiken'!$E:$E,"<=" &E$16) -> 0 | F8: =COUNTIFS('Detailbewertung Risiken'!$D:$D, ">=" & $C9, 'Detailbewertung Risiken'!$D:$D, "<" &$C8, 'Detailbewertung Risiken'!$E:$E,">"&F$16, 'Detailbewertung Risiken'!$E:$E,"<=" &G$16) -> 0 | H8: =COUNTIFS('Detailbewertung Risiken'!$D:$D, ">=" & $C9, 'Detailbewertung Risiken'!$D:$D, "<" &$C8, 'Detailbewertung Risiken'!$E:$E,">"&H$16, 'Detailbewertung Risiken'!$E:$E,"<=" &I$16) -> 0 | J8: =COUNTIFS('Detailbewertung Risiken'!$D:$D, ">=" & $C9, 'Detailbewertung Risiken'!$D:$D, "<" &$C8, 'Detailbewertung Risiken'!$E:$E,">"&J$16, 'Detailbewertung Risiken'!$E:$E,"<=" &K$16) -> 0 | L8: =COUNTIFS('Detailbewertung Risiken'!$D:$D, ">=" & $C9, 'Detailbewertung Risiken'!$D:$D, "<" &$C8, 'Detailbewertung Risiken'!$E:$E,">"&L$16, 'Detailbewertung Risiken'!$E:$E,"<=" &M$16) -> 0 | N8: =COUNTIFS('Detailbewertung Chancen'!$D:$D, ">=" & $C9, 'Detailbewertung Chancen'!$D:$D, "<" &$C8, 'Detailbewertung Chancen'!$E:$E,"<="&N$16, 'Detailbewertung Chancen'!$E:$E,">" &O$16) -> 0 | P8: =COUNTIFS('Detailbewertung Chancen'!$D:$D, ">=" & $C9, 'Detailbewertung Chancen'!$D:$D, "<" &$C8, 'Detailbewertung Chancen'!$E:$E,"<="&P$16, 'Detailbewertung Chancen'!$E:$E,">" &Q$16) -> 0 | R8: =COUNTIFS('Detailbewertung Chancen'!$D:$D, ">=" & $C9, 'Detailbewertung Chancen'!$D:$D, "<" &$C8, 'Detailbewertung Chancen'!$E:$E,"<="&R$16, 'Detailbewertung Chancen'!$E:$E,">" &S$16) -> 0 | T8: =COUNTIFS('Detailbewertung Chancen'!$D:$D, ">=" & $C9, 'Detailbewertung Chancen'!$D:$D, "<" &$C8, 'Detailbewertung Chancen'!$E:$E,"<="&T$16, 'Detailbewertung Chancen'!$E:$E,">" &U$16) -> 0 | V8: =COUNTIFS('Detailbewertung Chancen'!$D:$D, ">=" & $C9, 'Detailbewertung Chancen'!$D:$D, "<" &$C8, 'Detailbewertung Chancen'!$E:$E,"<="&V$16, 'Detailbewertung Chancen'!$E:$E,">" &W$16) -> 0 | X8: 80 | AC8: 10
C9: 61 | X9: 61
C10: 60 | D10: =COUNTIFS('Detailbewertung Risiken'!$D:$D, ">=" & $C11, 'Detailbewertung Risiken'!$D:$D, "<" &$C10, 'Detailbewertung Risiken'!$E:$E,">"&D$16, 'Detailbewertung Risiken'!$E:$E,"<=" &E$16) -> 0 | F10: =COUNTIFS('Detailbewertung Risiken'!$D:$D, ">=" & $C11, 'Detailbewertung Risiken'!$D:$D, "<" &$C10, 'Detailbewertung Risiken'!$E:$E,">"&F$16, 'Detailbewertung Risiken'!$E:$E,"<=" &G$16) -> 0 | H10: =COUNTIFS('Detailbewertung Risiken'!$D:$D, ">=" & $C11, 'Detailbewertung Risiken'!$D:$D, "<" &$C10, 'Detailbewertung Risiken'!$E:$E,">"&H$16, 'Detailbewertung Risiken'!$E:$E,"<=" &I$16) -> 0 | J10: =COUNTIFS('Detailbewertung Risiken'!$D:$D, ">=" & $C11, 'Detailbewertung Risiken'!$D:$D, "<" &$C10, 'Detailbewertung Risiken'!$E:$E,">"&J$16, 'Detailbewertung Risiken'!$E:$E,"<=" &K$16) -> 0 | L10: =COUNTIFS('Detailbewertung Risiken'!$D:$D, ">=" & $C11, 'Detailbewertung Risiken'!$D:$D, "<" &$C10, 'Detailbewertung Risiken'!$E:$E,">"&L$16, 'Detailbewertung Risiken'!$E:$E,"<=" &M$16) -> 0 | N10: =COUNTIFS('Detailbewertung Chancen'!$D:$D, ">=" & $C11, 'Detailbewertung Chancen'!$D:$D, "<" &$C10, 'Detailbewertung Chancen'!$E:$E,"<="&N$16, 'Detailbewertung Chancen'!$E:$E,">" &O$16) -> 0 | P10: =COUNTIFS('Detailbewertung Chancen'!$D:$D, ">=" & $C11, 'Detailbewertung Chancen'!$D:$D, "<" &$C10, 'Detailbewertung Chancen'!$E:$E,"<="&P$16, 'Detailbewertung Chancen'!$E:$E,">" &Q$16) -> 0 | R10: =COUNTIFS('Detailbewertung Chancen'!$D:$D, ">=" & $C11, 'Detailbewertung Chancen'!$D:$D, "<" &$C10, 'Detailbewertung Chancen'!$E:$E,"<="&R$16, 'Detailbewertung Chancen'!$E:$E,">" &S$16) -> 0 | T10: =COUNTIFS('Detailbewertung Chancen'!$D:$D, ">=" & $C11, 'Detailbewertung Chancen'!$D:$D, "<" &$C10, 'Detailbewertung Chancen'!$E:$E,"<="&T$16, 'Detailbewertung Chancen'!$E:$E,">" &U$16) -> 0 | V10: =COUNTIFS('Detailbewertung Chancen'!$D:$D, ">=" & $C11, 'Detailbewertung Chancen'!$D:$D, "<" &$C10, 'Detailbewertung Chancen'!$E:$E,"<="&V$16, 'Detailbewertung Chancen'!$E:$E,">" &W$16) -> 0 | X10: 60
C11: 41 | X11: 41
C12: 40 | D12: =COUNTIFS('Detailbewertung Risiken'!$D:$D, ">=" & $C13, 'Detailbewertung Risiken'!$D:$D, "<" &$C12, 'Detailbewertung Risiken'!$E:$E,">"&D$16, 'Detailbewertung Risiken'!$E:$E,"<=" &E$16) -> 0 | F12: =COUNTIFS('Detailbewertung Risiken'!$D:$D, ">=" & $C13, 'Detailbewertung Risiken'!$D:$D, "<" &$C12, 'Detailbewertung Risiken'!$E:$E,">"&F$16, 'Detailbewertung Risiken'!$E:$E,"<=" &G$16) -> 0 | H12: =COUNTIFS('Detailbewertung Risiken'!$D:$D, ">=" & $C13, 'Detailbewertung Risiken'!$D:$D, "<" &$C12, 'Detailbewertung Risiken'!$E:$E,">"&H$16, 'Detailbewertung Risiken'!$E:$E,"<=" &I$16) -> 1 | J12: =COUNTIFS('Detailbewertung Risiken'!$D:$D, ">=" & $C13, 'Detailbewertung Risiken'!$D:$D, "<" &$C12, 'Detailbewertung Risiken'!$E:$E,">"&J$16, 'Detailbewertung Risiken'!$E:$E,"<=" &K$16) -> 0 | L12: =COUNTIFS('Detailbewertung Risiken'!$D:$D, ">=" & $C13, 'Detailbewertung Risiken'!$D:$D, "<" &$C12, 'Detailbewertung Risiken'!$E:$E,">"&L$16, 'Detailbewertung Risiken'!$E:$E,"<=" &M$16) -> 0 | N12: =COUNTIFS('Detailbewertung Chancen'!$D:$D, ">=" & $C13, 'Detailbewertung Chancen'!$D:$D, "<" &$C12, 'Detailbewertung Chancen'!$E:$E,"<="&N$16, 'Detailbewertung Chancen'!$E:$E,">" &O$16) -> 0 | P12: =COUNTIFS('Detailbewertung Chancen'!$D:$D, ">=" & $C13, 'Detailbewertung Chancen'!$D:$D, "<" &$C12, 'Detailbewertung Chancen'!$E:$E,"<="&P$16, 'Detailbewertung Chancen'!$E:$E,">" &Q$16) -> 0 | R12: =COUNTIFS('Detailbewertung Chancen'!$D:$D, ">=" & $C13, 'Detailbewertung Chancen'!$D:$D, "<" &$C12, 'Detailbewertung Chancen'!$E:$E,"<="&R$16, 'Detailbewertung Chancen'!$E:$E,">" &S$16) -> 0 | T12: =COUNTIFS('Detailbewertung Chancen'!$D:$D, ">=" & $C13, 'Detailbewertung Chancen'!$D:$D, "<" &$C12, 'Detailbewertung Chancen'!$E:$E,"<="&T$16, 'Detailbewertung Chancen'!$E:$E,">" &U$16) -> 1 | V12: =COUNTIFS('Detailbewertung Chancen'!$D:$D, ">=" & $C13, 'Detailbewertung Chancen'!$D:$D, "<" &$C12, 'Detailbewertung Chancen'!$E:$E,"<="&V$16, 'Detailbewertung Chancen'!$E:$E,">" &W$16) -> 0 | X12: 40
C13: 21 | X13: 21
C14: 20 | D14: =COUNTIFS('Detailbewertung Risiken'!$D:$D, ">=" & $C15, 'Detailbewertung Risiken'!$D:$D, "<" &$C14, 'Detailbewertung Risiken'!$E:$E,">"&D$16, 'Detailbewertung Risiken'!$E:$E,"<=" &E$16) -> 0 | F14: =COUNTIFS('Detailbewertung Risiken'!$D:$D, ">=" & $C15, 'Detailbewertung Risiken'!$D:$D, "<" &$C14, 'Detailbewertung Risiken'!$E:$E,">"&F$16, 'Detailbewertung Risiken'!$E:$E,"<=" &G$16) -> 0 | H14: =COUNTIFS('Detailbewertung Risiken'!$D:$D, ">=" & $C15, 'Detailbewertung Risiken'!$D:$D, "<" &$C14, 'Detailbewertung Risiken'!$E:$E,">"&H$16, 'Detailbewertung Risiken'!$E:$E,"<=" &I$16) -> 0 | J14: =COUNTIFS('Detailbewertung Risiken'!$D:$D, ">=" & $C15, 'Detailbewertung Risiken'!$D:$D, "<" &$C14, 'Detailbewertung Risiken'!$E:$E,">"&J$16, 'Detailbewertung Risiken'!$E:$E,"<=" &K$16) -> 0 | L14: =COUNTIFS('Detailbewertung Risiken'!$D:$D, ">=" & $C15, 'Detailbewertung Risiken'!$D:$D, "<" &$C14, 'Detailbewertung Risiken'!$E:$E,">"&L$16, 'Detailbewertung Risiken'!$E:$E,"<=" &M$16) -> 0 | N14: =COUNTIFS('Detailbewertung Chancen'!$D:$D, ">=" & $C15, 'Detailbewertung Chancen'!$D:$D, "<" &$C14, 'Detailbewertung Chancen'!$E:$E,"<="&N$16, 'Detailbewertung Chancen'!$E:$E,">" &O$16) -> 0 | P14: =COUNTIFS('Detailbewertung Chancen'!$D:$D, ">=" & $C15, 'Detailbewertung Chancen'!$D:$D, "<" &$C14, 'Detailbewertung Chancen'!$E:$E,"<="&P$16, 'Detailbewertung Chancen'!$E:$E,">" &Q$16) -> 0 | R14: =COUNTIFS('Detailbewertung Chancen'!$D:$D, ">=" & $C15, 'Detailbewertung Chancen'!$D:$D, "<" &$C14, 'Detailbewertung Chancen'!$E:$E,"<="&R$16, 'Detailbewertung Chancen'!$E:$E,">" &S$16) -> 0 | T14: =COUNTIFS('Detailbewertung Chancen'!$D:$D, ">=" & $C15, 'Detailbewertung Chancen'!$D:$D, "<" &$C14, 'Detailbewertung Chancen'!$E:$E,"<="&T$16, 'Detailbewertung Chancen'!$E:$E,">" &U$16) -> 0 | V14: =COUNTIFS('Detailbewertung Chancen'!$D:$D, ">=" & $C15, 'Detailbewertung Chancen'!$D:$D, "<" &$C14, 'Detailbewertung Chancen'!$E:$E,"<="&V$16, 'Detailbewertung Chancen'!$E:$E,">" &W$16) -> 0 | X14: 20
C15: 0 | X15: =C15 -> 0
D16: 1 | E16: 2 | F16: 3 | G16: 4 | H16: 5 | I16: 6 | J16: 7 | K16: 8 | L16: 9 | M16: 10 | N16: 10 | O16: 9 | P16: 8 | Q16: 7 | R16: 6 | S16: 5 | T16: 4 | U16: 3 | V16: 2 | W16: 1
D17: Auswirkungen | W17: Auswirkungen
K19: Risiken in roter Zone: | L19: =SUM(H6:M7)+SUM(J8:M9)+L10 -> 1 | V19: Chancen in grüner Zone: | W19: =SUM(N6:S7)+N8+P8+N10 -> 1
K20: Risiken in gelber Zone: | L20: =D6+F6+F8+H8+H10+J10+J12+L12+L14 -> 0 | V20: Chancen in gelber Zone: | W20: =T6+V6+R8+T8+P10+R10+N12+P12+N14 -> 0
K21: Risiken in grüner Zone: | L21: =SUM(D14:K15)+SUM(D12:I13)+F10+D10+D8 -> 1 | V21: Chancen in roter Zone: | W21: =SUM(P14:W15)+SUM(R12:W13)+T10+V10+V8 -> 1
K22: Gesamtanzahl von Risken in Bewertung: | L22: =SUM(L19:L21) -> 2 | V22: Gesamtanzahl der Chancen in Bewertung: | W22: =SUM(W19:W21) -> 2
D24: Vgl. 11.3.2.2. PMBOK 5th edition, page 329

Sheet Erläuterung Risiken+Chancen
B2: Erläuterung der Risiken und Chancen

Sheet Detailbewertung Risiken
B2: Detailbewertung der Risiken
B4: Nr. | C4: Risiko | D4: Wahrschein- lichkeit | E4: Bewertung der Auswirkungen | F4: Exposure | G4: Auswirkungen | H4: Maßnahmen | I4: Verantwortlich | J4: Typ | K4: Resourcen | L4: Zeitbedarf | M4: Funktion- alität | O4: Wahrscheinlichk. | P4: Auswirk.
B5: 1 | C5: Der Kunde benötigt deutschsprachige Benutzerschnittstellen da dies einer der wesentlichen Anforderungen des Kunden ist. | D5: 85 | E5: 10 | F5: =D5*E5/100 -> 8.5 | G5: Projektziel verfehlt. | H5: Projektleiter prüft dies, ob Support gewährleistet wird. Sonst Eskalation | I5: Rudorfer | J5: Scope
B6: 2 | C6: Verspätete Lieferung der Hardware | D6: 35 | E6: 6 | F6: 2.1

Sheet Detailbewertung Chancen
B2: Detailbewertung der Chancen
B4: Nr. | C4: Opportunity | D4: Wahrschein- lichkeit | E4: Bewertung der Auswirkungen | F4: Exposure | G4: Auswirkungen | H4: Maßnahmen | I4: Verantwortlich | J4: Typ | K4: Resourcen | L4: Zeitbedarf | M4: Funktion- alität | N4: Wahrscheinlichk. | O4: Auswirk.
B5: 2 | C5: Erweiterung der Lösung auf die Länder Slowakei, Tschechien und Polen | D5: 85 | E5: 8 | F5: =D5*E5/100 -> 6.8 | G5: Redesign der zentralen Serverarchitektur | H5: Pre-Salestermin mit den Ansprechpartnern in den jeweiligen Ländern | I5: Rudorfer
B6: 1 | C6: Herstellung einer zentralen Sigle-Signon Lösung | D6: 35 | E6: 4 | F6: 1.4 | G6: Verbesserung der Benutzerakzeptanz | H6: Vorstellung der Lösung durch den Security-Architekten | I6: Rudorfer
